Workbook

Sheet Informationen zur Anmeldung
B1: Anmeldung Flächenbelegung Gewächshauslaborzentrum Dürnast
B2: Stand 11/2022
B4: Hinweis für alle Nutzer: Bevor Sie eigenständig in den GHL-Räumlichkeiten arbeiten dürfen, ist es aus rechtlichen Gründen erforderlich, Sie in die Sicherheitsrichtlinien einzuweisen. Dazu müssen den angehängten „S1-Leitfaden für Versuchsansteller“ sowie die Informationen bezüglich „Arbeitssicherheit am GHL für Projektpartner“ lesen und dies in jedem Anmeldeformular ankreuzen und durch Ihre Unterschrift bestätigen. Um den GHL-Leistungskatalog einzusehen oder näheres über GHL-Kulturverfahren, Materialien und Firmenkontakte zu erfahren, loggen Sie sich auf der GHL-Homepage unter dem Reiter "Internal" mit Ihrer TUM-Kennung ein.
B8: Versuchsanmeldung:
B9: Formulare bitte ausfüllen und senden an: ghl@ls.tum.de
B10: Unterschriften werden in das ausgedruckte Formular eingefügt und zusätzlich mit dem Excel-Original-Anmeldeformular eingereicht.
B11: Sie als Versuchsansteller sind für die Unversehrtheit unserer GHL-Mitarbeiter verantwortlich, wenn diese in Ihrem Experiment mit speziellen, versuchsspezifischen-Gerätschaften und/oder -Substanzen (Pflanzenschutzmittel, Chemikalien, …) umgehen sollen. Daher müssen Sie bezüglich diesen Gefährdungen umfangreiche Kenntnisse besitzen, uns diese mitteilen und Gefärdungsbeurteilungen erstellen. Mit der Bestätigung auf dem Anmeldebogen "Keine Gefahr" versichern Sie dies und haften bei Missachtung.
B13: Experimente mit natürlichen Pflanzen
B14: => Anmeldebogen (ANLAGE-9) einreichen
B16: S1-Experimente mit gen-veränderten Pflanzen (GVOs)
B17: feste Pflanzen-Bestückung während des Experimentes
B18: => Anmeldebogen (ANLAGE-9) UND Formblatt-Z (ANLAGE-1) einreichen mit Unterschrift vom verantwortlichen LS/AG-Projektleiter und Vektorkarten
B20: S1-Experimente mit gen-veränderten Pflanzen (GVOs)
B21: wechselnde Pflanzen-Bestückung während des Experimentes
B22: => Anmeldebogen (ANLAGE-9) UND Formblatt-Z (ANLAGE-1) einreichen mit Unterschrift vom verantwortlichen LS/AG-Projektleiter und Vektorkarten
B24: => während der Versuchsdurchführung => Anbringung einer Dokumentationsliste außen an die Versuchseinheit (gemäß "Muster Dokumentationsliste") und eigenständige Dokumentation aller GVO-Ein- und Außgänge

Sheet Anmeldebogen
A1: Anmeldung Flächenbelegung Gewächshauslaborzentrum Dürnast
A2: Stand 11/2022 | E2: Formular bitte ausfüllen und senden an: ghl@ls.tum.de
A3: Nur wenn die ersten drei Punkte mit "Ja" bestätigt und die Unterschrift geleistet wurden, kann das Experiment am GHL durchgeführt werden. Den S1-Leitfaden und die Information zur Arbeitssicherheit finden Sie auch auf der GHL-Homepage.
A5: I. Ich habe den „S1-Leitfaden für Versuchsansteller“ (Stand 2024) gelesen | H5: Ja/Nein
A7: II. Ich habe die „Arbeitssicherheit am GHL für Projektpartner“ (Stand 2024) gelesen | H7: Ja/Nein
A9: III. Von meinem Experiment gehen keine Gefahren für Mensch und Umwelt aus | H9: Abfrage
A11: Ist die Veröffentlichung des Versuchstitels und/oder des Versuchsanstellers auf der | H11: Ja/Nein
A12: GHL-Homepage erwünscht?
A14: Datum | C14: Vor-Nachname
F16: Unterschrift
A17: Im Fragebogen bitte möglichst genaue Angaben (blau hinterlegten Felder) zu den Ansprüchen der zu kultivierenden Pflanzenart angeben. Die Verantwortung für das Experiment liegt beim Versuchsansteller! Darum ist es unbedingt notwendig ausreichend häufig vor Ort zu sein, die Pflanzenqualität zu beobachten und regelmäßig Kontakt zum jeweils betreuenden Meister bzw. zum technischen/wissenschaftlichen Leiter der Abteilung halten, damit auftretende Probleme gemeinsam früh erkannt und behoben werden können.
A19: Versuchsnummer: GHL | D19: Betreuer am GHL: | F19: Meister
A21: S1: | B21: Nein | E21: Standort: | F21: GHL
A23: 1-Angaben zum Nutzer
D24: hier auswählen falls bereits aufgelistet
A25: Lehrstuhl (LS) / Fachgebiet (FG):
D26: hier eingeben falls noch nicht aufgelistet
A27: Ansprechpartner (Name) 1: | F27: 2:
A29: Telefon | C29: 1: | F29: 2:
A31: e-mail | C31: 1: | F31: 2:
A33: Abrechnung über: | D33: Einzelrechnung
A35: 2-Pflanzenmaterial und Flächenbedarf
A37: Pflanzenart | F37: andere
A39: Art der Kulturfläche | F39: Wunsch-Standort
C40: oder | E40: oder
A41: Anzahl Pflanzen | D41: Anz. Tische | F41: Fläche | H41: (m²)
A43: Nutzungszeitraum von | D43: bis
A45: Versuchs-relevantes Pflanzenmaterial:
A47: Blüten | B47: Früchte | C47: Blätter | D47: Saatgut | E47: Wurzeln | G47: sonstiges (bitte erläutern)
A48: Nein | B48: Nein | C48: Nein | D48: Nein | E48: Nein
A49: GWH1 -Gewächshaus; GWH-KAB2 -Gewächshaus-Kabine; PAR3 -Pflanzenanzuchtraum (Klimakabine); KS4 -Klimaschrank
A50: 3-Klimabedingungen | G50: ← möglich bei
G51: gelisteten Kulturen (Reiterauswahl)
A52: Kultivierung nach GHL-Empfehlung? => BUTTON drücken | G52: Bitte vorher Makros aktivieren
A53: => dann Punkte 3.1 - 4 werden automatisch Ausgefüllt => ggf. modifizieren
A55: 3.1-Ziel-Temperatur | C55: Tag: | G55: °C (Heizungssollwert)
A56: (GWH1,GWH-KAB2,PAR3,KS4) | C56: GWH_KAB Ziel-Temp. im System: z.B. 15°C => Real-Temperatur Winter → 15°C / Sommer → 25°C GWH Ziel-Temp. im System: z.B. 20°C => Real-Temperatur Winter → 18°C / Sommer → 35°C | G56: Lüftungssollwert +(2-4)°C
A58: Temperaturen sollten ggf. der Lichtverfügbarkeit angepasst werden. Je nach Kultursystem und Jahreszeit können die realen Temperaturen sehr stark von den Wunschtemperaturen (Klimacomputer-Sollwerte) abweichen. => GHL-Homepage =>
A59: https://www.ghl.wzw.tum.de/fileadmin/user_upload/GHL-Kulturverfahren__GHL-Materialien__Kontaktdaten_zu_Firmen_und_Infos.pdf
A60: 3.2-Luftfeuchte
A61: (PAR3, KS4, *GWH-KAB2) | C61: Tag: | E61: Nacht: | G61: % rel. LF
A62: *in GWH-KAB eingeschränkt möglich
A63: 3.3-Belichtung: DLI = PPFR * 0,0036 * Belichtungs-Dauer (mol/m²*d)
A65: PAR3, KS4 : PAR: max. 500μmol/m²*s KS: max. 300 μmol/m²*s
A67: Lichtintensität (µmol/m²*s) | D67: Dauer (h/d) | G67: DLI (mol/m²d) | H67: =(C67*E67*0.0036) -> 0
A69: System-Eignung: Kultur/Jahreszeit | E69: natürliches DLI der Kultur (mol/m²d)
A71: GWH1 : Assimilationslicht (ASL) im GWH => ca. 60-80% Außenlicht
A72: ASSL-PPFR (µmol/m²*s) | D72: Dauer (h/d) | F72: DLI (mol/m²d) | H72: =(C72*E72*0.0036) -> 0
C73: wenn verfügbar | H73: +
A74: System-Eignung: Kultur/Jahreszeit | D74: zzgl. 80*-60**% Außenlicht-DLI (mol/m²d)
A76: *direkte Strahlung (Sommer), ** diffuse Strahlung (Winter) natürliches DLI der Kultur (mol/m²d)
A78: Schattieren ab einer Lichtintensität von… (Lichtstress)
B80: Schattierungsaktivierung | G80: klux (Außen)
A82: GWH-KAB2 : Assimilationslicht (ASL) GWH-KAB => ca. 30-50% Außenlicht
A83: ASSL-PPFR (µmol/m²*s) | D83: Dauer (h/d) | F83: DLI (mol/m²d) | H83: =(C83*E83*0.0036) -> 0
C84: wenn verfügbar | H84: +
A85: System-Eignung: Kultur/Jahreszeit | D85: zzgl. 50*-30**% Außenlicht-DLI (mol/m²d)
A87: *direkte Strahlung (Sommer), ** diffuse Strahlung (Winter) natürliches DLI der Kultur (mol/m²d)
A88: Schattieren ab einer Lichtintensität von… (Lichtstress)
B90: Schattierungsaktivierung | G90: klux (Außen)
A91: GWH_KAB (außer im Winter) : wird zur Stabilisierung der Temperatur immer ab ca. 40 klx (ca. 630 µmol/m²s ) Außenlicht schattiert (=> 500 (direkt) - 200 (diffus) µmol/m²s an der Pflanze)
A92: 4-Substrat / Kulturgefäße / Bewässerung / Düngung | E92: *ZL = Zusatzleistung
A94: 4.1-Substrat I | C94: Substrat | F94: eigenes
A95: evt. Aussaat / Topfen
A96: Substrat II | C96: Substrat | F96: eigenes
A98: 4.2-Töpfe-Gefäße | C98: Töpfe | F98: Stück
A99: evt. Aussaat / Topfen
A100: Töpfe-Gefäße | C100: Töpfe | F100: Stück
A102: 4.3-Bewässerung | C102: Bewässerung | F102: Düngung | G102: Ja
A104: 4.4-Wasserqualität | C104: Wasserqualität
A108: 5-Pflanzenschutz (evt. Einschränkungen aufgrund der Versuchsfrage)
A109: Bitte beachten: Chemischer-Pflanzenschutz erfolgt immer in Absprache mit dem Versuchsansteller und unterliegt immer den BVL-Richtlinien. Um eine Schädlings bzw. Krankheits-Verschleppung auf andere Experimente zu unterbinden, ist "Keine Behandlung" nur in abgetrennten Kulturbereichen möglich. Biologischer Pflanzenschutz erfolgt regelmäßig ohne Absprache, wenn dieser gewünscht ist.
A111: Pflanzenschutzmaßnahme | D111: Pflanzenschutz (PS)
A113: 6-kurze Versuchsbeschreibung (UNBEDINGT NOTWENDIG!!!)
A122: 7-Messdatenerfassung
A123: Fall Sie Messdaten des Klimacomputers benötigen oder bezüglich spezieller Meßdatenerfassung Fragen haben, wenden Sie sich bitte an den betreuenden Meister
A125: 8-Vereinbarungen / Sonderleistungen
A131: 9-GHL-Kulturempfehlung in der gewählten Versuchseinheit
A132: April-September | C132: Oktober - März | E132: Versuchsstart | F132: SO | G132: Kultur
A133: SO | C133: WI | E133: Kultursystem | G133: sonstige
E134: Temp. Tag °C
E135: Temp. Nacht °C
E136: RF % Tag
E137: RF % Nacht
E138: ASS-Licht µmol/m²*s (Assimilation-Zusatzbelichtung)
E139: Belichtungsdauer h/d (Assimilation-Zusatzbelichtung)
E140: DLI mol/m²d (Zusatz durch Assimilationslicht)
E141: nat. DLI mol/m²d (natürliches Licht im System)
E142: gesamt DLI mol/m²d (ASS-DLI + nat. DLI)
E143: optimales Kultur-DLI mol/m²d
E144: Topfgröß-I (Anzucht) (cm im Durchmesser / Liter pro Topf)
E145: Topfgröß-II (Kultur) (cm im Durchmesser / Liter pro Topf)
E146: Substrat-I (Anzucht)
E147: Substrat-II (Kultur)
E148: System-Eignung für Kultur in diesem System zu dieser Jahreszeit
E149: Schattieren über (klx)
E150: Bewässerung
E151: Wasserqualität
E152: Düngeart
E153: Düngergaben
E154: DüngeKonz
E155: Besonderheiten
A157: GHL-Einträge während der Kulturführung

Sheet Tabellen (hidden)
A1: Ja/Nein | C1: Ja | F1: Meister | H1: Spalte1 | J1: GHL | L1: PAR, KS | M1: Spalte1 | O1: GWH | P1: Spalte1 | R1: GWH-KAB | S1: Spalte1 | U1: LS/FG/AG | W1: Pflanzenart | Y1: Art der Kulturfläche | AA1: Schattierungsaktivierung | AC1: Substrat | AE1: Töpfe | AG1: Bewässerung | AI1: Pflanzenschutz | AK1: GHL | AM1: Herr/Frau | AO1: Titel | AQ1: Wasserqualität
A2: Ja/Nein | C2: Ja | F2: Meister | H2: 0 | J2: GHL | M2: 0 | P2: 0 | S2: 0 | U2: LS/FG/AG | W2: Pflanzenart | Y2: Art der Kulturfläche | AA2: Schattierungsaktivierung | AC2: Substrat | AE2: Töpfe | AG2: Bewässerung | AI2: Pflanzenschutz (PS) | AK2: GHL | AM2: Herr/Frau | AO2: Titel | AQ2: Wasserqualität
A3: Ja | C3: Nein | F3: Hansel | H3: 10 | J3: GHL1-234 | M3: 100 | P3: 50 | S3: 150 | U3: Agrarsystemrechnik | W3: Arabidopsis spp. | Y3: Gewächshaus mit Tischen | AA3: keine Schattierung | AC3: Topfsubstrat: C700 Stender | AE3: 9 cm Ø / 0.3 L | AG3: Anstaubewässerung | AI3: keine Behandlungen | AK3: GHL1-234 | AM3: Herr | AO3: Dr. | AQ3: Stadtwasser (pH: 8 / 19° dH / EC ≈ 0.8 ms)
A4: Nein | F4: Steinmetz | H4: 12 | J4: GHL2-858 | M4: 150 | P4: 100 | S4: 200 | U4: Biochemie | W4: Crassocephalum | Y4: Gewächshaus mit Rinnen | AA4: 80 sehr sonnenliebende Pflanzen Wachstumsphase (ca. 1440 µmol/m²s) | AC4: Topfsubstrat: D400 Stender | AE4: 11 cm Ø / 0.5 L | AG4: Tröpfchenbewässerung | AI4: nur biologischer PS | AK4: GHL2-858 | AM4: Frau | AO4: Prof. | AQ4: VE: vollentsalztes Wasser (pH: 6.5-7 / ≈ 0.001° dH / EC ≈ 0.001 ms)
F5: Zuber | H5: 14 | J5: GHL3-1189 | M5: 200 | P5: 200 | S5: 250 | U5: Biotechnologie der Naturstoffe | W5: Erdbeeren (Fragaria spp.) | Y5: Gewächshaus-Kabine | AA5: 70 sonnenliebende Pflanzen Wachstumsphaste (ca. 1260 µmol/m²*s) | AC5: Anzuchtsubstrat: A200 Stender | AE5: 13 cm Ø / 0.9 L | AG5: Versuchsansteller bewässert selbst | AI5: nur chemischer PS (wenn möglich) | AK5: GHL3-1189 | AQ5: VE: STW (3:1) Verschnitt (pH: 7,7 / ≈ 7° dH (rechnerisch) / EC ≈ 0.25 ms)
H6: 16 | J6: GHL4 | M6: 250 | S6: 500 | U6: Biotechnologie gartenbaulicher Kulturen | W6: Gerste-Sommer (cv. Golden-Promise) | Y6: Pflanzenanzuchtraum (PAR/PKR) | AA6: 60 sonnenliebende Pflanzen Wachstumsphaste (ca. 1080 µmol/m²*s) | AC6: C700 : E910 (2:1) + 10% Bims (ZL*) | AE6: 17 cm Ø / 2 L | AI6: biologischer PS nur mit Absprache | AK6: GHL5-1287 | AQ6: VE: STW (1:1) Verschnitt (≈ 11° dH (rechnerisch))
H7: 18 | J7: GHL5-1287 | M7: 300 | U7: Botanik | W7: Gerste-Sommer (Hordeum vulg.) | Y7: Klimaschrank | AA7: 45 sonnenliebende Pflanzen ab Blüte (ca. 810 µmol/m²) | AC7: eigenes Substrat | AE7: 19 cm Ø / 3 L | AI7: biologischer- und chemischer PS möglich | AQ7: Milli-Q-Wasser (nur bei Eigenversorgung möglich)
H8: 20 | M8: 350 | U8: Brau- u. Getränketechnologie | W8: Gerste-Winter (Hordeum vulg.) | Y8: Kühllagerraum | AA8: 40 sonnenliebende Pflanzen ab Blüte (ca. 720 µmol/m²) | AE8: 31 cm Ø / 12 L | AI8: biologischer- und chemischer PS nur nach Absprache
H9: 24 | M9: 400 | U9: Crop Physiology | W9: Kartoffeln (Solanum tuber.) | Y9: Vegetationshalle | AA9: 30 lichtempfindliche Pflanzen (ca. 540 µmol/m²s) | AE9: 33 cm Ø / 15 L
A10: https://www.ghl.wzw.tum.de/internal/versuchsanmeldung.html | M10: 450 | U10: Green Techn. In Landscape Architecture | W10: Lotus | Y10: Frühbeetkasten | AA10: 10 bei kalten Temperaturen (ca. 180 µmol/m²s) | AE10: andere
A11: https://www.ghl.wzw.tum.de/fileadmin/user_upload/Arbeitssicherheit_am_GHL_fuer_Projektpartner_Anlage_10_Stand_2021.pdf | M11: 500 | U11: HEF & Digital Agriculture | W11: Mais (Zea mays) | Y11: Freilandfläche
A12: https://www.ghl.wzw.tum.de/fileadmin/user_upload/S1-Leitfaden_fuer_Versuchsansteller_Anlage5_Stand_2021.pdf | M12: 600 | U12: Land Surface-Atmosphere Interactions | W12: Raps (Brassica napus) | Y12: Zylinderanlage
M13: 1000 | U13: Lebensmittelchemie und molekulare Sensorik | W13: Sonnenblumen (Helianthus spp.)
U14: LMU-Dep. Biologie I | W14: Tomaten-Kurzkultur
A15: ghl@wzw.tum.de | U15: Ökoklimatologie | W15: Tomaten-Langkultur
C16: Rechnungsart | F16: Abfrage | H16: Abfrage | U16: Ökologie und Ökosystemmanagement | W16: Weizen-Sommer (Nasa)
C17: SFB | F17: Nein | H17: Eine Gefahr | U17: Ökologischer Landbau | W17: Weizen-Sommer (Triticum spp.)
A18: Ja/Nein | C18: Einzelrechnung | F18: Ja | H18: Keine Gefahr | U18: Ökophysiologie d. Pflanze | W18: Weizen-Winter (Triticum spp.)
A19: Ja/Nein | U19: Pflanzengenetik | W19: Wildtomaten (S. chilense ) Kurzkultur
A20: Gefahr | U20: Pflanzenzüchtung | W20: Wildtomaten (S. chilense ) Langkultur
A21: Keine Gefahr | U21: Phytopathologie | W21: sonstige
U22: Pilz-Biotechnologie in der Holzwissenschaft
U23: Plant-Insect Interactions
U24: Populationsgenetik
U25: Renaturierungsökologie
U26: Soil Biophysics and Enviromental Systems
U27: Systembiologie der Pflanzen
U28: Terrestrische Ökologie
U29: Urbane Produktive Ökosysteme
A38: https://www.youtube.com/watch?v=QwddXEyRC0w
A39: https://support.microsoft.com/de-de/office/sperren-oder-entsperren-von-bestimmten-bereichen-eines-gesch%C3%BCtzten-arbeitsblatts-75481b72-db8a-4267-8c43-042a5f2cd93a

Sheet S1-Leitfaden
B1: S1-Leitfaden für GHL-Nutzer (Umgangsregelungen)
B2: Stand 2024
B3: Arbeiten in S1 Räumen: Anlagen, in denen mit Gen-Veränderten-Organismen (GVO's) gearbeitet wird
B5: Hinweis für alle Nutzer: Die Projektleitung (PL) der gentechnischen-S1-Anlagen (234, 858, 1189 und 1287) am Gewächshauslaborzentrum (GHL) der TUM-School of Life Sciences verpflichtet alle Projektverantwortlichen (Experimente mit oder ohne genveränderten Pflanzen (GVOs)) den Betriebsanweisungen am GHL Folge zu leisten. Die Betriebsanweisungen basieren auf Richtlinien der gültigen TUM-Organisationsverfügung „Gentechnik in geschlossenen Systemen“ (OrgV GenT-igS) - Grundlage §14 Gentechnik-Sicherheits-Verordnung (GenTSV).
B7: Mit der Unterschrift auf dem Anmeldebogen verpflichten Sie sich, die unter Punkt 3.1 Experimente ohne GVOs 3.1 + 3.2 Experimente mit GVOs aufgeführten Anweisungen zur lesen, die drei Verständnisfragen auf dem Anmeldebogen richtig anzukreuzen (nur 1x jährlich), diese einzuhalten sowie alle Projektteilnehmer entsprechend einzuweisen. Verbindlich bestätigt wird dies mit Ihrer Unterschrift auf dem Anmeldebogen. Die Richtlinien sind auch gegenüber dem HR6 und der Regierung von Oberbayern verbindlich.
B9: Leitfaden für S1-Arbeiten am GHL (Anlagen 234, 858, 1189, 1205, 1287)
B10: Am GHL wird mit Gen-veränderten Pflanzen gearbeitet, sogenannte GVOs (Gen Veränderte Organismen). Räumlichkeiten in denen mit GVOs gearbeitet werden darf, müssen offiziell bei Kontroll-Behörden gemeldet und genehmigt werden (S1-Anlagen). In diesen Anlagen gelten dann Europa- und Deutschlandweit genau festgelegte Verhaltensregeln, die im Gentechnik-gesetz (GenTG) und diversen Verordnungen festgelegt sind. Eine wichtige Anweisung besagt, dass sich nur eingewiesene Personen bzw. nur in Begleitung einer eingewiesenen Person in einer S1-Anlage aufhalten dürfen. Die GHL-Projektleitung (PL) – Dr. Susanne Steger -, trägt sowohl gegenüber dem HR6 (TUM Hochschulreferat 6 - Gesundheit, Sicherheit, Strahlenschutz) als auch der Regierung von Oberbayern die Verantwortung, die Verordnungen und Gesetze im Umgang mit Gen-veränderten-Organismen (GVOs) umzusetzen und zu gewährleisten. Auch wenn Sie kein S1-Experiment durchführen, halten Sie und Ihre Mitarbeiter sich in einer S1-Anlage auf und müssen sich gemäß der Richtlinien verhalten.
B12: Sie finden die wichtigsten Regeln als Betriebsanweisungen vor jeder einzelnen S1-Räumlichkeit.
B14: Am GHL werden ausschließlich Pflanzen der Sicherheitsstufe-1 (S1) kultiviert, bei der gemäß §7 GenTG „… nach dem Stand der Wissenschaft nicht von einem Risiko für die menschliche Gesundheit und die Umwelt auszugehen ist“.
B15: Ansprechpartner
B16: Projektleitung-GHL Dr. Susanne Steger: Tel.: 08161 71-5020
B17: susanne.steger@tum.de
B18: Beauftragter Biologische Sicherheit (BBS) Dr. Marion Müller Tel.: 08161 71-5736
B19: marion.mueller@tum.de
B22: Pflichten des Projektverantwortlichen und all seiner Mitarbeiter (Bezeichnung: Nutzer)
B23: 3.1 Alle Nutzer mit Experimenten
A24: 1 | B24: Generell sollte bitte stets auf Ordnung und Sauberkeit in den Versuchsaufbauten geachtet werden, da gelegentlich Begehungen von offiziellen Behörden stattfinden.
A25: 2 | B25: Der Projektverantwortliche hält alle an dem Projekt mitwirkenden Personen an, dieses Formular zu lesen und die GHL-Vorschrift entsprechend den Betriebsanweisungen einzuhalten. Nicht eingewiesene Mitarbeiter dürfen NUR in Begleitung einer unterwiesenen Person die Anlagen betreten. Die eingewiesene Person trägen hier die Verantwortung, dass die Betriebsanweisungen vor Ort gelesen und beachtet werden.
A26: 3 | B26: NICHT-GVO-Pflanzen niemals mit einem orangen Etikett kennzeichnen (am GHL gilt: orange ↔ GVOs)
A27: 4 | B27: Es dürfen keine Pflanzen bzw. Pflanzenteile wie Früchte und Blüten aus anderen Experimenten mitgenommen oder gegessen werden.
A28: 5 | B28: Bitte stets die Betriebsanweisungen an den Häusern beachten →Essen, Trinken, Rauchen, Schnupfen, Schminken und das Aufbewahren von Nahrungs- und Genussmittel im S1-Bereich sind verboten →Haustiere sind verboten →keine Pflanzenteile mitnehmen und essen →Türen während der Arbeiten geschlossen halten →Es besteht Laborkittelpflicht in S1-Räumen, falls diese nicht explizit durch GHL-Schilder aufgehoben wird. (Besucherkittel stehen zur Verfügung ggf. beim GHL-Personal anfragen)
A29: 6 | B29: Es dürfen keine Arbeitsutensilien in den Räumlichkeiten gelagert werden. Bei Platzbedarf für Lagerutensilien kann eine Box im Verbinder bereitgestellt werden (bitte fragen Sie im Gärtnerteam nach)
A30: 7 | B30: Um Pathogen-Freiheit an den Kulturen zu gewährleisten →Bei Pathogen-Befall bitte umgehend das Personal informieren und Bekämpfungsstrategien mit dem Meister/GHL-Personal abstimmen (Welche Maßnahme ist bei der jeweiligen Versuchsfrage möglich?) →Kein eigenständiger Transport von befallenen Pflanzen innerhalb des GHL - nach Absprache mit dem Meister/GHL-Personal auch nur in geschlossenen Transportbehälter →Kein eigenmächtiges Hinzustellen von neuen Pflanzen in bestehende Beständen ohne es vorher mit dem Meister/GHL-Personal abgesprochen zu haben
A31: 8 | B31: Eingewiesene Personen haben außerhalb der Öffnungszeiten nur über eine entsprechende Kartenzulassung Zugang zu den Anlagen (Personalkarte, Studentenkarte freischalten lassen (R. Hansel, S. Kolbinger).
A32: 9 | B32: Jeder Unfall oder jede Verletzung wird unverzüglich dem GHL-Gärtnermeister gemeldet werden - ggf. muss ein Arzt aufgesucht werden.
A33: 10 | B33: Aus Gründen der Arbeitssicherheit dürfen sich Nutzer niemals allein in den Anlagen aufhalten.
A34: 11 | B34: Elektrische und mechanische Gerätschaften dürfen nur mit CE- -Zertifikat und/oder einer gültigen TÜV-Prüfplakette verwendet werden.
B35: 3.2 Nutzer mit GVO-Pflanzen-Experimenten (S1)
B36: Zusätzlich zu den in 3.1 aufgeführten Punkten gilt hier:
A37: 12 | B37: Arbeiten in den S1-Räumen dürfen nur nach Rücksprache mit dem GHL-Projektleiter (PL-GHL) durchgeführt werden. →Formblatt-Z einreichen (Anzahl der einzelnen GVO’s; Unterschrift des LS-Projektleiters) →Vektorkarten aller verwendeten GVO’s einreichen →Bei Versuchsreihen/Projekte mit dynamischer GVO-Bestückung und –Entsorgung müssen zusätzlich alle GVO-Ein-und –Ausgänge auf einer Dokumentations-Liste vom Nutzer eigenständig dokumentiert werden (außen an der Versuchseinheit angebracht).
A38: 13 | B38: Transgene Pflanzen werden mit einem orangen Etikett gekennzeichnet (auch als Zusatz-Etikett möglich)
A39: 14 | B39: S1-Pflanzen dürfen ausschließlich in S1-Räumen bearbeitet werden! (kultivieren, lagern, ernten, auswerten, …). Substratreste werden verschlossen und beschriftet (GHL-Nr.) in der genutzten S1-Einheit gelagert
A40: 15 | B40: KEINE Transformationsarbeiten am GHL möglich
A41: 16 | B41: Transport von GVOs innerhalb vom GHL ausschließlich in den speziellen S1-Transport-Boxen! Auch die kürzesten Wege!
A42: 17 | B42: Vermehrungsfähiges Pflanzengewebe darf NIEMALS in die Umwelt gelangen! DARUM=> →Laborkittel-Pflicht => verhindern Saatgut/Pollen-Verschleppung durch Kleidung →Kittel verbleibt im GWH/PAR oder wird dort zur Mitnahme verpackt, dann autoklaviert →Kultivierung von blühenden GVO-Pflanzen nur in eingenetzten GWH →Eintüten der Blüten-/Frucht-Stände wenn Bestäubungspartner anderer Arbeitsgruppen beeinflusst werden. →Saatgut-Verschleppung vermeiden →Klebematten am Boden, Netzte in der Lüftung, Filter im Gully, S1-Sauger, S1-Müll →Tische regelmäßig (wöchentlich) vom Saatgut befreien (fegen, saugen mit S1-Sauger). Heruntergefallenes Saatgut umgehend beseitigen. →Pflanzen so aufstellen, dass kein Saatgut auf den Boden fallen kann (Abstand vom Tischrand) →S1-Material in kompostierbar und Restmüll trennen (beschriftete Behälter im GWH/VE) →Gelbe Behälter => kompostierbar →Weiße Behälter => Restmüll (auch Töpfe mit Saatgutanhaftungen z.B. Arabidopsis) →S1-Trays im Kabinenhaus lagern und waschen (ggf. andere Räumlichkeiten beim GHL-Personal anfragen)
A43: 18 | B43: →Entsorgung von S1-Pflanzen (Autoklavieren immer in Absprache mit dem GHL-Personal) →Pflanzenmaterial & Substrat müssen immer vor der Entsorgung inaktiviert werden. →Bei direktem Kontakt oder benachbartem Aufstellort von S1- und NICHT-S1-Pflanzen gleicher Gattung und Art müssen BEIDE Pflanzengruppen wie S1-Pflanzen behandelt werden (Pollenübertragung, Samenverbreitung). →Pflanzenmaterial & Substrat im Autoklavierbeutel verpacken (großen Wurzelballen zerkleinern => Deaktivierung vom Vegetationspunkt) →Autoklavier-Säcke locker füllen (1/2 bis 1/3 befüllen (Gewicht!)); Bei Bedarf 2 Säcke übereinander verwenden (!!! Säcke sind teuer!!!) →Versuchsnummer und Standort mit dem Edding auf dem Sack notieren!!! →Lange, harte, starre Pflanzenteile gut zerkleinern, damit nichts durchdrückt →Das verpackte Material verbleibt bis zur Inaktivierung in der jeweiligen Versuchseinheit und wird vom GHL-Personal abgeholt und autoklaviert.

Sheet Arbeitssicherheit
B1: Arbeitssicherheit für GHL-Nutzer
B2: Stand 2024
B4: Hinweis für alle Nutzer: Am GHL gelten die Regeln der allgemeinen TUM-Hausordnung. Außerdem müssen Vorschriften gemäß Arbeitsschutzverordnung, Betriebssicherheitsverordnung, Gefahrstoffverordnung und „Grundsätze der Prävention“ BGV A1 beachtet werden. Die Verantwortung der Einhaltung liegt beim Nutzer (Projektpartner). Die Projekt-Verantwortliche-Person ist verpflichtet, die Sicherheitshinweise an alle ausführende Mitarbeiter weiterzugeben.
B6: Sie sind als Wissenschaftler/in, Studierende/r, technische/r Mitarbeiter/in o. ä. in der TU München tätig. Am Gewächshauslaborzentrum Dürnast gibt es unter Umständen Gefahren, die ihnen nicht bekannt bzw. fremd sind. Dieses Informationsblatt erläutert die wichtigsten Gefahren und Verhaltensregeln. Bei weiteren Fragen können Sie sich gerne an eine/n GHL-Verantwortliche/n wenden (Dr. H. Hausladen, Dr. S. Steger, Dr. B.Jakli sowie die Gärtner-Meister/in K. Steinmetz, S. Zuber und R. Hansel). Die GHL-verantwortlichen sind gesetzlich befugt, ihnen Vorschriften zur Sicherheit zu machen und bei unmittelbarer Gefahr direkt in ihren Arbeitsbereich einzugreifen.
B8: Folgende Punkte sind bei Arbeiten am GHL zu befolgen:
B9: → Alle Arbeiten müssen während der Öffnungszeiten im Meisterbüro angemeldet werden. Außerhalb der Öffnungszeiten liegt die Verantwortung bei den Projektpartnern.
C10: Öffnungszeiten: Montag – Donnerstag: 7:30 – 16:30 Uhr Freitag: 7:30 – 12:30 Uhr
B11: →Bei Arbeiten in Klimakammern und Gewächshäusern ist das Betreten erst nach Einweisung durch den Verantwortlichen erlaubt. Auch bei Projektpartnern, die nicht mit Gen veränderten Organismen (GVO’s) arbeiten ist eine Einweisung in die S1-Vorschriften notwendig.
B12: Machen Sie sich zunächst mit dem jeweiligen Arbeitsplatz vertraut. Überprüfen Sie ihn und seine nähere Umgebung auf mögliche Gefahrenquellen. Informieren Sie sich über Rettungswege, Notausgänge, Standorte und Bedienung der Feuerlöscheinrichtungen und -geräte. Blockieren Sie mit ihren Arbeiten und Geräten keine Fluchtwege, keine Feuerlöschgeräte und dergleichen.
A14: → | B14: Beginnen Sie mit neuen Arbeiten erst nach Freigabe der entsprechenden Einrichtung durch unseren Betrieb.
A15: → | B15: Beachten Sie die angebrachten Gebots-, Verbots- und Warnschilder. Diese gelten nämlich für ALLE!
A16: → | B16: Vielleicht werden ihnen von unserem Betrieb Maschinen, Handwerkszeug, Gerüste, Leitern usw. zur Verfügung gestellt. Auch wenn unsere Mitarbeiter verpflichtet sind, diese Dinge in sicherheitstechnisch einwandfreiem Zustand zu halten, prüfen Sie dies vor der Benutzung selbst auf sicherheitstechnisch einwandfreien Zustand.
A17: → | B17: Es ist nicht ausgeschlossen, dass noch nicht alle Absturzstellen (z.B. Treppenhäuser, Bodenluken, Laufstege) mit Absturzsicherungen versehen sind. Meiden Sie diese Gefahrenstellen! Veranlassen Sie bei unserem Koordinator die erforderlichen Sicherungen anzubringen, falls Sie in der Nähe solcher Gefahrenstellen arbeiten müssen oder diese auf dem Weg zu ihrem Arbeitsplatz liegen. Für Hinweise allgemeiner Art wären wir ihnen dankbar!
A18: → | B18: Unsere Betriebe besitzen in der Regel einen Sanitätsraum mit Erste-Hilfe-Ausrüstung sowie einen Defibrillator neben dem Seminarraum. Dieses steht auch ihnen bei Verletzungen oder Gesundheitsstörungen offen.
A19: → | B19: Beachten Sie, dass wir bei grob fahrlässigen oder vorsätzlichen Verstößen gegen Sicherheitsvorschriften einen Verweis vom Betriebsgelände aussprechen.
B21: Sicherheitsverantwortlichkeit
B22: Der Projektpartner (Nutzer) ist für die Arbeitssicherheit seiner Mitarbeiter verantwortlich. In diesem Sinne ist er gemäß Arbeitsschutzgesetz, Betriebssicherheitsverordnung, Gefahrstoffverordnung, BG Vorschrift „Grundsätze der Prävention“ BGV A1, hat er für die Einhaltung zu sorgen.
B24: Zugang zu Gebäude I Aufenthalt in Gebäude
B25: Der Zutritt und der Aufenthalt auf dem Gelände sind nur gestattet, soweit es die Durchführung des wissenschaftlichen Experiments erfordert. Vorhandene Verkehrsschilder sowie Zutrittsverbote sind zu beachten. Fahrzeuge dürfen im Gebäudebereich nur an Plätzen abgestellt werden, die einen öffentlichen Parkplatz darstellen oder die mit dem GHL Dürnast zuvor abgestimmt worden sind.
B27: Persönliche Schutzausrüstung
B28: Soweit für den Arbeitsbereich spezielle Schutzbekleidung (Sicherheitsschuhe, Schutzhelm) notwendig ist, haben Mitarbeiter des Projektpartners diese zu tragen.
B30: Arbeits- und Betriebsmittel
B31: Der Projektpartner hat seine Arbeits- und Betriebsmittel auf dem vom GHL Dürnast zugewiesenen Platz ordnungsgemäß zu lagern. Der Projektpartner hat seine Arbeits- und Betriebsmittel nach Abschluss der Tätigkeit ordnungsgemäß sauber zu hinterlassen.
B33: Elektrischer Strom
B34: Experimente an denen Strom führende Bauteile verwendet werden, sind mit dem GHL abzustimmen. Ortsveränderliche elektrische Bauteile (alles mit einem Stecker) müssen eine aktuelle E-Check-Plakette haben. Möglichkeiten zum nachträglichen E-Check bestehen bei Herrn Kolbinger. Alle baulichen Elektroeinrichtungen (Schaltschränke, Verteilungen, …) dürfen nicht eigenständig bedient, geöffnet oder betreten werden.
B36: Schutz gegen Absturz
B37: Arbeitsplätze, die mehr als 1 m über dem Boden liegen, müssen einen sicheren Zugang, festen Standort und eine wirksame Absturzsicherung haben. Provisorische Aufstiegshilfen und Arbeitspodeste dürfen nicht benutzt werden.
B39: Umweltschutz
B40: →Alle negativen Umweltauswirkungen sind auf das unbedingt notwendige Maß zu reduzieren. Umweltauswirkungen besonderer Art bzw. größeren Ausmaßes (z. B. Lärm) sind vorab mit dem GHL Dürnast abzusprechen. →Wassergefährdende Stoffe dürfen nicht ins Erdreich und nicht in das Abwassersystem geleitet werden. Bei der Lagerung sind Schutzmaßnahmen (z. B. Auffangwannen) nötig →Pflanzenschutzmittel/Gefahrstoffe dürfen nicht selbstständig ohne das GHL-Personal ausgebracht werden →Abfälle des Projektpartners sind vom Projektpartner selbst zu entsorgen, bzw. in Absprache mit dem benannten Ansprechpartner vor Ort.
B42: Unfälle, Schadensfälle, umweltrelevante Ereignisse
B43: Arbeitsplätze, die mehr als 1 m über dem Boden liegen, müssen einen sicheren Zugang, festen Standort und eine wirksame Absturzsicherung haben. Provisorische Aufstiegshilfen und Arbeitspodeste dürfen nicht benutzt werden.
B45: Ordnung und Sauberkeit
B46: Das Arbeitsumfeld ist stets in einem ordentlichen und sauberen Zustand zu halten.
B48: Hygiene und Sicherheit
B49: Die an den jeweiligen Versuchsanlagen angebrachten Hygienepläne sind einzuhalten. Impfungen wie Tetanus, Zecken, … werden empfohlen.
B51: Datenschutzbestimmungen
B52: Photographien und Filmdreharbeiten dürfen nur mit Genehmigung erstellt werden.
B54: Besondere Gefährdung/gefährliche Arbeiten – Absprache
B55: Werden von dem Projektpartner geplante gefährliche Arbeiten oder Arbeiten mit besonderer Gefährdung durchgeführt, hat er die Gefährdungsbeurteilung nach Freigabe des Experiments, rechtzeitig vor dem Start dem GHL Dürnast vorzulegen. Gleiches gilt für besondere Gefährdungen aus dem Bereich des Projektpartners, die das GHL nicht kennt. Eine nachweisliche Absprache hat immer zu erfolgen. Die von Projektpartnern selbst konstruierte Gerätschaften/Versuchsaufbauten müssen technisch abgenommen werden (TÜV, Sicherheitsbeauftragter, …).
B57: Mechanische Gefährdungen durch automatische Lüftungen
B58: Warnschilder sind zu beachten. Gegenstände und Körperteile sind von den Seitenlüftungen fernzuhalten.
B60: Stolperquellen in Gewächshäusern
B61: Fest installierte Dünger- und Wasser-Leitungen hinter den Tischen (Ostseite). Schläuche und Gießgeräte.
B63: Maschinen-Nutzung
B64: Warnschilder sind zu beachten. Nutzung der jeweiligen Geräte / Maschinen nur nach ausdrücklicher Einführung durch GHL-Mitarbeiter. Mechanische Geräte dürfen nicht alleine genutzt werden.
B68: Scharfe und spitze Gegenstände
B69: Sachgemäße Lagerung und Entsorgung (Spitzen nur mit Schutzhülle).
B71: Persönliche Gefahren
B72: Heiße Temperaturen im Gewächshaus können Kreislaufprobleme erzeugen. Hebeeinrichtungen zur Handhabung schwerer Lasten (Geräte beim GHL Personal anfordern). Verbot der Alleinarbeit.
B74: Pflanzenschutzanwendungen
B75: Die nach Pflanzenschutzmaßnahmen gekennzeichneten Gewächshauseinheiten dürfen auf keinen Fall betreten werden.

Sheet Kulturen (hidden)
A1: Kultur | B1: Kulturmonate | C1: Jahreszeit Winter: Okt.-März Sommer: April-Sept. | D1: Kultursystem | E1: Entwicklungsziel | F1: Vermehrungsart | G1: geeigneter Kultur-Zeitraum | H1: Kulturdauer (Monate) | I1: Temp. Tag °C | J1: Temp. Nacht °C | K1: rel. LF % Tag | L1: rel. LF % Nacht | M1: optimale = natürliches Tagelichtsumme für Kultur (mol/m²d) | N1: Anteil optimale Tagelichtsumme für Kultur im System (%) | O1: natürliches DLI im System (mol/m²d) | P1: Tageslicht-summe (DLI-Jahreszeit-Durchnitt) mol/m²d | Q1: ASS-Belichtung DLI (mol/m²d) | R1: ASL-Lichtintensität (µmol/m²s) | S1: Belichtungsdauer h/d | T1: Bewässerung | U1: Wasserqualität | V1: Düngesystem | W1: Dünger (Jungpfl. / veget. W. / Blüte) | X1: Düngegaben | Y1: Dünge-Konz. EC (µs) (Jungpfl. / veg. Wachstum / Blüte) | Z1: Topfgröße I | AA1: Topfgröße II | AB1: SubstratI | AC1: SubstratII | AD1: schattieren ab | AE1: sonstiges
A2: Kartoffeln (Solanum tuber.) | B2: Apr-Sep | C2: SO | D2: GWH-KAB | E2: Vermehrung-Abreife | F2: Augenstecklinge | G2: problematisch | H2: 4-5 | I2: 20 | J2: 20 | K2: 60 | L2: 60 | M2: 17 | N2: =(100*O2)/M2 -> 105.8514353 | O2: =(P2+Q2) -> 17.994744 | P2: 9.354744 | Q2: =R2*S2*0.0036 -> 8.64 | R2: 200 | S2: 12 | T2: Anstau, Tröpfchen | U2: VE: STW (3:1) Verschnitt (pH: 7,7 / ≈ 7° dH (rechnerisch) / EC ≈ 0.25 ms) | V2: Bewässerungsdüngung | X2: bei jeder Bewässerung | Y2: 0.5-1.5 | Z2: 13 cm Ø / 0.9 L | AA2: 31 cm Ø / 12 L | AB2: Topfsubstrat: C700 Stender | AC2: Topfsubstrat: C700 Stender | AD2: 40 sonnenliebende Pflanzen ab Blüte (ca. 720 µmol/m²)
A3: Kartoffeln (Solanum tuber.) | B3: Okt-März | C3: WI | D3: GWH-KAB | E3: Vermehrung-Abreife | F3: Augenstecklinge | G3: gut | H3: 4-5 | I3: 20 | J3: 20 | K3: 60 | L3: 60 | M3: 17 | N3: 68.56317386 | O3: =(P3+Q3) -> 11.65573956 | P3: 3.015739556 | Q3: 8.64 | R3: 200 | S3: 12 | T3: Anstau, Tröpfchen | U3: VE: STW (3:1) Verschnitt (pH: 7,7 / ≈ 7° dH (rechnerisch) / EC ≈ 0.25 ms) | V3: Bewässerungsdüngung | X3: bei jeder Bewässerung | Y3: 0.5-1.5 | Z3: 13 cm Ø / 0.9 L | AA3: 31 cm Ø / 12 L | AB3: Topfsubstrat: C700 Stender | AC3: Topfsubstrat: C700 Stender | AD3: 40 sonnenliebende Pflanzen ab Blüte (ca. 720 µmol/m²)
A4: Kartoffeln (Solanum tuber.) | B4: Apr-Sep | C4: SO | D4: GWH | E4: Vermehrung-Abreife | F4: Augenstecklinge | G4: problematisch | H4: 4-5 | I4: 20 | J4: 20 | M4: 17 | N4: 96.29883529 | O4: 16.370802 | P4: 16.370802 | Q4: 0 | T4: Anstau, Tröpfchen | U4: VE: STW (3:1) Verschnitt (pH: 7,7 / ≈ 7° dH (rechnerisch) / EC ≈ 0.25 ms) | V4: Bewässerungsdüngung | X4: bei jeder Bewässerung | Y4: 0.5-1.5 | Z4: 13 cm Ø / 0.9 L | AA4: 31 cm Ø / 12 L | AB4: Topfsubstrat: C700 Stender | AC4: Topfsubstrat: C700 Stender | AD4: 40 sonnenliebende Pflanzen ab Blüte (ca. 720 µmol/m²)
A5: Kartoffeln (Solanum tuber.) | B5: Okt-März | C5: WI | D5: GWH | E5: Vermehrung-Abreife | F5: Augenstecklinge | G5: gut | H5: 4-5 | I5: 20 | J5: 20 | M5: 17 | N5: 56.45614248 | O5: 9.597544222 | P5: 5.277544222 | Q5: 4.32 | R5: 100 | S5: 12 | T5: Anstau, Tröpfchen | U5: VE: STW (3:1) Verschnitt (pH: 7,7 / ≈ 7° dH (rechnerisch) / EC ≈ 0.25 ms) | V5: Bewässerungsdüngung | X5: bei jeder Bewässerung | Y5: 0.5-1.5 | Z5: 13 cm Ø / 0.9 L | AA5: 31 cm Ø / 12 L | AB5: Topfsubstrat: C700 Stender | AC5: Topfsubstrat: C700 Stender | AD5: 40 sonnenliebende Pflanzen ab Blüte (ca. 720 µmol/m²)
A6: Kartoffeln (Solanum tuber.) | B6: Apr-Sep | C6: SO | D6: PAR | E6: Vermehrung-Abreife | F6: Augenstecklinge | G6: sehr gut | H6: 4-5 | I6: 20 | J6: 20 | K6: 60 | L6: 60 | M6: 17 | N6: 135.5294118 | O6: 23.04 | Q6: 23.04 | R6: 400 | S6: 16 | T6: Anstau, Tröpfchen | U6: VE: STW (3:1) Verschnitt (pH: 7,7 / ≈ 7° dH (rechnerisch) / EC ≈ 0.25 ms) | V6: Bewässerungsdüngung | X6: bei jeder Bewässerung | Y6: 0.5-1.5 | Z6: 13 cm Ø / 0.9 L | AA6: 31 cm Ø / 12 L | AB6: Topfsubstrat: C700 Stender | AC6: Topfsubstrat: C700 Stender
A7: Kartoffeln (Solanum tuber.) | B7: Okt-März | C7: WI | D7: PAR | E7: Vermehrung-Abreife | F7: Augenstecklinge | G7: sehr gut | H7: 4-5 | I7: 20 | J7: 20 | K7: 60 | L7: 60 | M7: 17 | N7: 135.5294118 | O7: 23.04 | Q7: 23.04 | R7: 400 | S7: 16 | T7: Anstau, Tröpfchen | U7: VE: STW (3:1) Verschnitt (pH: 7,7 / ≈ 7° dH (rechnerisch) / EC ≈ 0.25 ms) | V7: Bewässerungsdüngung | X7: bei jeder Bewässerung | Y7: 0.5-1.5 | Z7: 13 cm Ø / 0.9 L | AA7: 31 cm Ø / 12 L | AB7: Topfsubstrat: C700 Stender | AC7: Topfsubstrat: C700 Stender
A8: Gerste-Sommer (cv. Golden-Promise) | B8: Apr-Sep | C8: SO | D8: GWH-KAB | E8: Vermehrung-Abreife | F8: Saatgutvermehrung | G8: sehr gut | H8: 4-5 | I8: 18 | J8: 18 | K8: 60 | L8: 60 | M8: 23 | N8: 90.75975652 | O8: 20.874744 | P8: 9.354744 | Q8: 11.52 | R8: 200 | S8: 16 | T8: Anstaubewässerung | U8: VE: STW (3:1) Verschnitt (pH: 7,7 / ≈ 7° dH (rechnerisch) / EC ≈ 0.25 ms) | V8: Bewässerungsdüngung | X8: bei jeder Bewässerung | Y8: Bestockung/Schossen: 1.2 - 1.8; Ährenschieben: 0.8-1.5 | Z8: 19 cm Ø / 3 L | AB8: Topfsubstrat: C700 Stender | AD8: 30 lichtempfindliche Pflanzen (ca. 540 µmol/m²s) | AE8: Saat/Keimung (18/18°C); Bestockung (12/12°C); Schossen (15/15°C); Ährenschieben (17/17°C); Bestockung/Schossen: N-betont - S wichtig; Ährenschieben: K-betont
A9: Gerste-Sommer (cv. Golden-Promise) | B9: Okt-März | C9: WI | D9: GWH-KAB | E9: Vermehrung-Abreife | F9: Saatgutvermehrung | G9: problematisch | H9: 4-5 | I9: 18 | J9: 18 | K9: 60 | L9: 60 | M9: 23 | N9: 75.72060676 | O9: 17.41573956 | P9: 3.015739556 | Q9: 14.4 | R9: 200 | S9: 20 | T9: Anstaubewässerung | U9: VE: STW (3:1) Verschnitt (pH: 7,7 / ≈ 7° dH (rechnerisch) / EC ≈ 0.25 ms) | V9: Bewässerungsdüngung | X9: bei jeder Bewässerung | Y9: Bestockung/Schossen: 1.2 - 1.8; Ährenschieben: 0.8-1.5 | Z9: 19 cm Ø / 3 L | AB9: Topfsubstrat: C700 Stender | AD9: 30 lichtempfindliche Pflanzen (ca. 540 µmol/m²s) | AE9: Saat/Keimung (18/18°C); Bestockung (12/12°C); Schossen (15/15°C); Ährenschieben (17/17°C); Bestockung/Schossen: N-betont - S wichtig; Ährenschieben: K-betont
A10: Gerste-Sommer (cv. Golden-Promise) | B10: Apr-Sep | C10: SO | D10: GWH | E10: Vermehrung-Abreife | F10: Saatgutvermehrung | G10: sehr gut | H10: 4-5 | I10: 17 | J10: 17 | M10: 23 | N10: 71.1774 | O10: 16.370802 | P10: 16.370802 | Q10: 0 | T10: Anstaubewässerung | U10: VE: STW (3:1) Verschnitt (pH: 7,7 / ≈ 7° dH (rechnerisch) / EC ≈ 0.25 ms) | V10: Bewässerungsdüngung | X10: bei jeder Bewässerung | Y10: Bestockung/Schossen: 1.2 - 1.8; Ährenschieben: 0.8-1.5 | Z10: 19 cm Ø / 3 L | AB10: Topfsubstrat: C700 Stender | AD10: 70 sonnenliebende Pflanzen Wachstumsphaste (ca. 1260 µmol/m²*s) | AE10: Saat/Keimung (18/18°C); Bestockung (12/12°C); Schossen (15/15°C); Ährenschieben (17/17°C); Bestockung/Schossen: N-betont - S wichtig; Ährenschieben: K-betont
A11: Gerste-Sommer (cv. Golden-Promise) | B11: Okt-März | C11: WI | D11: GWH | E11: Vermehrung-Abreife | F11: Saatgutvermehrung | G11: problematisch | H11: 4-5 | I11: 17 | J11: 17 | M11: 23 | N11: 38.59801836 | O11: 8.877544222 | P11: 5.277544222 | Q11: 3.6 | R11: 50 | S11: 20 | T11: Anstaubewässerung | U11: VE: STW (3:1) Verschnitt (pH: 7,7 / ≈ 7° dH (rechnerisch) / EC ≈ 0.25 ms) | V11: Bewässerungsdüngung | X11: bei jeder Bewässerung | Y11: Bestockung/Schossen: 1.2 - 1.8; Ährenschieben: 0.8-1.5 | Z11: 19 cm Ø / 3 L | AB11: Topfsubstrat: C700 Stender | AE11: Saat/Keimung (18/18°C); Bestockung (12/12°C); Schossen (15/15°C); Ährenschieben (17/17°C); Bestockung/Schossen: N-betont - S wichtig; Ährenschieben: K-betont
A12: Gerste-Sommer (cv. Golden-Promise) | B12: Apr-Sep | C12: SO | D12: PAR | E12: Vermehrung-Abreife | F12: Saatgutvermehrung | G12: sehr gut | H12: 4-5 | I12: 18 | J12: 17 | K12: 60 | L12: 60 | M12: 23 | N12: 100.173913 | O12: 23.04 | Q12: 23.04 | R12: 400 | S12: 16 | T12: Anstaubewässerung | U12: VE: STW (3:1) Verschnitt (pH: 7,7 / ≈ 7° dH (rechnerisch) / EC ≈ 0.25 ms) | V12: Bewässerungsdüngung | X12: bei jeder Bewässerung | Y12: Bestockung/Schossen: 1.2 - 1.8; Ährenschieben: 0.8-1.5 | Z12: 19 cm Ø / 3 L | AB12: Topfsubstrat: C700 Stender | AE12: Saat/Keimung (18/18°C); Bestockung (12/12°C); Schossen (15/15°C); Ährenschieben (17/17°C); Bestockung/Schossen: N-betont - S wichtig; Ährenschieben: K-betont
A13: Gerste-Sommer (cv. Golden-Promise) | B13: Okt-März | C13: WI | D13: PAR | E13: Vermehrung-Abreife | F13: Saatgutvermehrung | G13: sehr gut | H13: 4-5 | I13: 18 | J13: 17 | K13: 60 | L13: 60 | M13: 23 | N13: 100.173913 | O13: 23.04 | Q13: 23.04 | R13: 400 | S13: 16 | T13: Anstaubewässerung | U13: VE: STW (3:1) Verschnitt (pH: 7,7 / ≈ 7° dH (rechnerisch) / EC ≈ 0.25 ms) | V13: Bewässerungsdüngung | X13: bei jeder Bewässerung | Y13: Bestockung/Schossen: 1.2 - 1.8; Ährenschieben: 0.8-1.5 | Z13: 19 cm Ø / 3 L | AB13: Topfsubstrat: C700 Stender | AE13: Saat/Keimung (18/18°C); Bestockung (12/12°C); Schossen (15/15°C); Ährenschieben (17/17°C); Bestockung/Schossen: N-betont - S wichtig; Ährenschieben: K-betont
A14: Gerste-Sommer (Hordeum vulg.) | B14: Apr-Sep | C14: SO | D14: GWH-KAB | E14: Vermehrung-Abreife | F14: Saatgutvermehrung | G14: sehr gut | H14: 4-5 | I14: 18 | J14: 18 | K14: 60 | L14: 60 | M14: 23 | N14: 90.75975652 | O14: 20.874744 | P14: 9.354744 | Q14: 11.52 | R14: 200 | S14: 16 | T14: Anstaubewässerung | U14: VE: STW (3:1) Verschnitt (pH: 7,7 / ≈ 7° dH (rechnerisch) / EC ≈ 0.25 ms) | V14: Bewässerungsdüngung | X14: bei jeder Bewässerung | Y14: Bestockung/Schossen: 1.2 - 1.8; Ährenschieben: 0.8-1.5 | Z14: 19 cm Ø / 3 L | AB14: Topfsubstrat: C700 Stender | AD14: 30 lichtempfindliche Pflanzen (ca. 540 µmol/m²s) | AE14: Bestockung/Schossen: N-betont - S wichtig; Ährenschieben: K-betont
A15: Gerste-Sommer (Hordeum vulg.) | B15: Okt-März | C15: WI | D15: GWH-KAB | E15: Vermehrung-Abreife | F15: Saatgutvermehrung | G15: problematisch | H15: 4-5 | I15: 17 | J15: 17 | K15: 60 | L15: 60 | M15: 23 | N15: 75.72060676 | O15: 17.41573956 | P15: 3.015739556 | Q15: 14.4 | R15: 200 | S15: 20 | T15: Anstaubewässerung | U15: VE: STW (3:1) Verschnitt (pH: 7,7 / ≈ 7° dH (rechnerisch) / EC ≈ 0.25 ms) | V15: Bewässerungsdüngung | X15: bei jeder Bewässerung | Y15: Bestockung/Schossen: 1.2 - 1.8; Ährenschieben: 0.8-1.5 | Z15: 19 cm Ø / 3 L | AB15: Topfsubstrat: C700 Stender | AD15: 30 lichtempfindliche Pflanzen (ca. 540 µmol/m²s) | AE15: Bestockung/Schossen: N-betont - S wichtig; Ährenschieben: K-betont
A16: Gerste-Sommer (Hordeum vulg.) | B16: Apr-Sep | C16: SO | D16: GWH | E16: Vermehrung-Abreife | F16: Saatgutvermehrung | G16: sehr gut | H16: 4-5 | I16: 17 | J16: 17 | M16: 23 | N16: 71.1774 | O16: 16.370802 | P16: 16.370802 | Q16: 0 | T16: Anstaubewässerung | U16: VE: STW (3:1) Verschnitt (pH: 7,7 / ≈ 7° dH (rechnerisch) / EC ≈ 0.25 ms) | V16: Bewässerungsdüngung | X16: bei jeder Bewässerung | Y16: Bestockung/Schossen: 1.2 - 1.8; Ährenschieben: 0.8-1.5 | Z16: 19 cm Ø / 3 L | AB16: Topfsubstrat: C700 Stender | AD16: 70 sonnenliebende Pflanzen Wachstumsphaste (ca. 1260 µmol/m²*s) | AE16: Bestockung/Schossen: N-betont - S wichtig; Ährenschieben: K-betont
A17: Gerste-Sommer (Hordeum vulg.) | B17: Okt-März | C17: WI | D17: GWH | E17: Vermehrung-Abreife | F17: Saatgutvermehrung | G17: problematisch | H17: 4-5 | I17: 17 | J17: 17 | M17: 23 | N17: 38.59801836 | O17: 8.877544222 | P17: 5.277544222 | Q17: 3.6 | R17: 50 | S17: 20 | T17: Anstaubewässerung | U17: VE: STW (3:1) Verschnitt (pH: 7,7 / ≈ 7° dH (rechnerisch) / EC ≈ 0.25 ms) | V17: Bewässerungsdüngung | X17: bei jeder Bewässerung | Y17: Bestockung/Schossen: 1.2 - 1.8; Ährenschieben: 0.8-1.5 | Z17: 19 cm Ø / 3 L | AB17: Topfsubstrat: C700 Stender | AE17: Bestockung/Schossen: N-betont - S wichtig; Ährenschieben: K-betont
A18: Gerste-Sommer (Hordeum vulg.) | B18: Apr-Sep | C18: SO | D18: PAR | E18: Vermehrung-Abreife | F18: Saatgutvermehrung | G18: sehr gut | H18: 4-5 | I18: 18 | J18: 17 | K18: 60 | L18: 60 | M18: 23 | N18: 100.173913 | O18: 23.04 | Q18: 23.04 | R18: 400 | S18: 16 | T18: Anstaubewässerung | U18: VE: STW (3:1) Verschnitt (pH: 7,7 / ≈ 7° dH (rechnerisch) / EC ≈ 0.25 ms) | V18: Bewässerungsdüngung | X18: bei jeder Bewässerung | Y18: Bestockung/Schossen: 1.2 - 1.8; Ährenschieben: 0.8-1.5 | Z18: 19 cm Ø / 3 L | AB18: Topfsubstrat: C700 Stender | AE18: Bestockung/Schossen: N-betont - S wichtig; Ährenschieben: K-betont
A19: Gerste-Sommer (Hordeum vulg.) | B19: Okt-März | C19: WI | D19: PAR | E19: Vermehrung-Abreife | F19: Saatgutvermehrung | G19: sehr gut | H19: 4-5 | I19: 18 | J19: 17 | K19: 60 | L19: 60 | M19: 23 | N19: 100.173913 | O19: 23.04 | Q19: 23.04 | R19: 400 | S19: 16 | T19: Anstaubewässerung | U19: VE: STW (3:1) Verschnitt (pH: 7,7 / ≈ 7° dH (rechnerisch) / EC ≈ 0.25 ms) | V19: Bewässerungsdüngung | X19: bei jeder Bewässerung | Y19: Bestockung/Schossen: 1.2 - 1.8; Ährenschieben: 0.8-1.5 | Z19: 19 cm Ø / 3 L | AB19: Topfsubstrat: C700 Stender | AE19: Bestockung/Schossen: N-betont - S wichtig; Ährenschieben: K-betont
A20: Gerste-Winter (Hordeum vulg.) | B20: Apr-Sep | C20: SO | D20: GWH-KAB | E20: Vermehrung-Abreife | F20: Saatgutvermehrung | G20: sehr gut | H20: 6-8 | I20: 18 | J20: 18 | K20: 60 | L20: 60 | M20: 23 | N20: =(100*O20)/M20 -> 90.75975652 | O20: =(P20+Q20) -> 20.874744 | P20: 9.354744 | Q20: =R20*S20*0.0036 -> 11.52 | R20: 200 | S20: 16 | T20: Anstaubewässerung | U20: VE: STW (3:1) Verschnitt (pH: 7,7 / ≈ 7° dH (rechnerisch) / EC ≈ 0.25 ms) | V20: Bewässerungsdüngung | X20: bei jeder Bewässerung | Y20: Bestockung/Schossen: 1.2 - 1.8; Ährenschieben: 0.8-1.5 | Z20: 19 cm Ø / 3 L | AB20: Topfsubstrat: C700 Stender | AD20: 30 lichtempfindliche Pflanzen (ca. 540 µmol/m²s) | AE20: 3-4 Wochen Vorkultur (18°C); 8-12 Wochen Vernalisation (8°C); Bestockung/Schossen: N-betont - S wichtig; Ährenschieben: K-betont
A21: Gerste-Winter (Hordeum vulg.) | B21: Okt-März | C21: WI | D21: GWH-KAB | E21: Vermehrung-Abreife | F21: Saatgutvermehrung | G21: problematisch | H21: 6-8 | I21: 17 | J21: 17 | K21: 60 | L21: 60 | M21: 23 | N21: 75.72060676 | O21: 17.41573956 | P21: 3.015739556 | Q21: 14.4 | R21: 200 | S21: 20 | T21: Anstaubewässerung | U21: VE: STW (3:1) Verschnitt (pH: 7,7 / ≈ 7° dH (rechnerisch) / EC ≈ 0.25 ms) | V21: Bewässerungsdüngung | X21: bei jeder Bewässerung | Y21: Bestockung/Schossen: 1.2 - 1.8; Ährenschieben: 0.8-1.5 | Z21: 19 cm Ø / 3 L | AB21: Topfsubstrat: C700 Stender | AD21: 30 lichtempfindliche Pflanzen (ca. 540 µmol/m²s) | AE21: 3-4 Wochen Vorkultur (18°C); 8-12 Wochen Vernalisation (8°C); Bestockung/Schossen: N-betont - S wichtig; Ährenschieben: K-betont
A22: Gerste-Winter (Hordeum vulg.) | B22: Apr-Sep | C22: SO | D22: GWH | E22: Vermehrung-Abreife | F22: Saatgutvermehrung | G22: sehr gut | H22: 6-8 | I22: 17 | J22: 17 | M22: 23 | N22: 71.1774 | O22: 16.370802 | P22: 16.370802 | Q22: 0 | T22: Anstaubewässerung | U22: VE: STW (3:1) Verschnitt (pH: 7,7 / ≈ 7° dH (rechnerisch) / EC ≈ 0.25 ms) | V22: Bewässerungsdüngung | X22: bei jeder Bewässerung | Y22: Bestockung/Schossen: 1.2 - 1.8; Ährenschieben: 0.8-1.5 | Z22: 19 cm Ø / 3 L | AB22: Topfsubstrat: C700 Stender | AD22: 70 sonnenliebende Pflanzen Wachstumsphaste (ca. 1260 µmol/m²*s) | AE22: 3-4 Wochen Vorkultur (18°C); 8-12 Wochen Vernalisation (8°C); Bestockung/Schossen: N-betont - S wichtig; Ährenschieben: K-betont
A23: Gerste-Winter (Hordeum vulg.) | B23: Okt-März | C23: WI | D23: GWH | E23: Vermehrung-Abreife | F23: Saatgutvermehrung | G23: problematisch | H23: 6-8 | I23: 17 | J23: 17 | M23: 23 | N23: 38.59801836 | O23: 8.877544222 | P23: 5.277544222 | Q23: 3.6 | R23: 50 | S23: 20 | T23: Anstaubewässerung | U23: VE: STW (3:1) Verschnitt (pH: 7,7 / ≈ 7° dH (rechnerisch) / EC ≈ 0.25 ms) | V23: Bewässerungsdüngung | X23: bei jeder Bewässerung | Y23: Bestockung/Schossen: 1.2 - 1.8; Ährenschieben: 0.8-1.5 | Z23: 19 cm Ø / 3 L | AB23: Topfsubstrat: C700 Stender | AE23: 3-4 Wochen Vorkultur (18°C); 8-12 Wochen Vernalisation (8°C); Bestockung/Schossen: N-betont - S wichtig; Ährenschieben: K-betont
A24: Gerste-Winter (Hordeum vulg.) | B24: Apr-Sep | C24: SO | D24: PAR | E24: Vermehrung-Abreife | F24: Saatgutvermehrung | G24: sehr gut | H24: 6-8 | I24: 18 | J24: 17 | K24: 60 | L24: 60 | M24: 23 | N24: 100.173913 | O24: 23.04 | Q24: 23.04 | R24: 400 | S24: 16 | T24: Anstaubewässerung | U24: VE: STW (3:1) Verschnitt (pH: 7,7 / ≈ 7° dH (rechnerisch) / EC ≈ 0.25 ms) | V24: Bewässerungsdüngung | X24: bei jeder Bewässerung | Y24: Bestockung/Schossen: 1.2 - 1.8; Ährenschieben: 0.8-1.5 | Z24: 19 cm Ø / 3 L | AB24: Topfsubstrat: C700 Stender | AE24: 3-4 Wochen Vorkultur (18°C); 8-12 Wochen Vernalisation (8°C); Bestockung/Schossen: N-betont - S wichtig; Ährenschieben: K-betont
A25: Gerste-Winter (Hordeum vulg.) | B25: Okt-März | C25: WI | D25: PAR | E25: Vermehrung-Abreife | F25: Saatgutvermehrung | G25: sehr gut | H25: 6-8 | I25: 18 | J25: 17 | K25: 60 | L25: 60 | M25: 23 | N25: 100.173913 | O25: 23.04 | Q25: 23.04 | R25: 400 | S25: 16 | T25: Anstaubewässerung | U25: VE: STW (3:1) Verschnitt (pH: 7,7 / ≈ 7° dH (rechnerisch) / EC ≈ 0.25 ms) | V25: Bewässerungsdüngung | X25: bei jeder Bewässerung | Y25: Bestockung/Schossen: 1.2 - 1.8; Ährenschieben: 0.8-1.5 | Z25: 19 cm Ø / 3 L | AB25: Topfsubstrat: C700 Stender | AE25: 3-4 Wochen Vorkultur (18°C); 8-12 Wochen Vernalisation (8°C); Bestockung/Schossen: N-betont - S wichtig; Ährenschieben: K-betont
A26: Tomaten-Langkultur | B26: Apr-Sep | C26: SO | D26: GWH-KAB | E26: Vermehrung-Abreife | F26: Stecklinge / Aussaat | G26: sehr gut | H26: 4-5 | I26: 19 | J26: 19 | K26: 60 | L26: 60 | M26: 25 | N26: 95.018976 | O26: 23.754744 | P26: 9.354744 | Q26: 14.4 | R26: 200 | S26: 20 | T26: Tröpfchenbewässerung | U26: VE: STW (3:1) Verschnitt (pH: 7,7 / ≈ 7° dH (rechnerisch) / EC ≈ 0.25 ms) | V26: Bewässerungsdüngung | X26: bei jeder Bewässerung | Y26: 1.5 - 3.0 | Z26: 13 cm Ø / 0.9 L | AA26: 31 cm Ø / 12 L | AB26: Topfsubstrat: C700 Stender | AC26: Topfsubstrat: C700 Stender | AD26: 45 sonnenliebende Pflanzen ab Blüte (ca. 810 µmol/m²)
A27: Tomaten-Langkultur | B27: Okt-März | C27: WI | D27: GWH-KAB | E27: Vermehrung-Abreife | F27: Stecklinge / Aussaat | G27: problematisch | H27: 4-5 | I27: 16 | J27: 16 | K27: 60 | L27: 60 | M27: 25 | N27: 69.66295822 | O27: 17.41573956 | P27: 3.015739556 | Q27: 14.4 | R27: 200 | S27: 20 | T27: Tröpfchenbewässerung | U27: VE: STW (3:1) Verschnitt (pH: 7,7 / ≈ 7° dH (rechnerisch) / EC ≈ 0.25 ms) | V27: Bewässerungsdüngung | X27: bei jeder Bewässerung | Y27: 1.5 - 3.0 | Z27: 13 cm Ø / 0.9 L | AA27: 31 cm Ø / 12 L | AB27: Topfsubstrat: C700 Stender | AC27: Topfsubstrat: C700 Stender | AD27: 45 sonnenliebende Pflanzen ab Blüte (ca. 810 µmol/m²)
A28: Tomaten-Langkultur | B28: Apr-Sep | C28: SO | D28: GWH | E28: Vermehrung-Abreife | F28: Stecklinge / Aussaat | G28: sehr gut | H28: 4-5 | I28: 19 | J28: 19 | M28: 25 | N28: 79.883208 | O28: 19.970802 | P28: 16.370802 | Q28: 3.6 | R28: 50 | S28: 20 | T28: Tröpfchenbewässerung | U28: VE: STW (3:1) Verschnitt (pH: 7,7 / ≈ 7° dH (rechnerisch) / EC ≈ 0.25 ms) | V28: Bewässerungsdüngung | X28: bei jeder Bewässerung | Y28: 1.5 - 3.0 | Z28: 13 cm Ø / 0.9 L | AA28: 31 cm Ø / 12 L | AB28: Topfsubstrat: C700 Stender | AC28: Topfsubstrat: C700 Stender | AD28: 45 sonnenliebende Pflanzen ab Blüte (ca. 810 µmol/m²)
A29: Tomaten-Langkultur | B29: Okt-März | C29: WI | D29: GWH | E29: Vermehrung-Abreife | F29: Stecklinge / Aussaat | G29: problematisch | H29: 4-5 | I29: 16 | J29: 16 | M29: 25 | N29: 35.51017689 | O29: 8.877544222 | P29: 5.277544222 | Q29: 3.6 | R29: 50 | S29: 20 | T29: Tröpfchenbewässerung | U29: VE: STW (3:1) Verschnitt (pH: 7,7 / ≈ 7° dH (rechnerisch) / EC ≈ 0.25 ms) | V29: Bewässerungsdüngung | X29: bei jeder Bewässerung | Y29: 1.5 - 3.0 | Z29: 13 cm Ø / 0.9 L | AA29: 31 cm Ø / 12 L | AB29: Topfsubstrat: C700 Stender | AC29: Topfsubstrat: C700 Stender | AD29: 45 sonnenliebende Pflanzen ab Blüte (ca. 810 µmol/m²)
A30: Tomaten-Langkultur | B30: Apr-Sep | C30: SO | D30: PAR | E30: Vermehrung-Abreife | F30: Stecklinge / Aussaat | G30: gut | H30: 4-5 | I30: 19 | J30: 19 | K30: 60 | L30: 60 | M30: 25 | N30: 92.16 | O30: 23.04 | Q30: 23.04 | R30: 400 | S30: 16 | T30: Tröpfchenbewässerung | U30: VE: STW (3:1) Verschnitt (pH: 7,7 / ≈ 7° dH (rechnerisch) / EC ≈ 0.25 ms) | V30: Bewässerungsdüngung | X30: bei jeder Bewässerung | Y30: 1.5 - 3.0 | Z30: 13 cm Ø / 0.9 L | AA30: 31 cm Ø / 12 L | AB30: Topfsubstrat: C700 Stender | AC30: Topfsubstrat: C700 Stender | AD30: 45 sonnenliebende Pflanzen ab Blüte (ca. 810 µmol/m²)
A31: Tomaten-Langkultur | B31: Okt-März | C31: WI | D31: PAR | E31: Vermehrung-Abreife | F31: Stecklinge / Aussaat | G31: gut | H31: 4-5 | I31: 16 | J31: 16 | K31: 60 | L31: 60 | M31: 25 | N31: 92.16 | O31: 23.04 | Q31: 23.04 | R31: 400 | S31: 16 | T31: Tröpfchenbewässerung | U31: VE: STW (3:1) Verschnitt (pH: 7,7 / ≈ 7° dH (rechnerisch) / EC ≈ 0.25 ms) | V31: Bewässerungsdüngung | X31: bei jeder Bewässerung | Y31: 1.5 - 3.0 | Z31: 13 cm Ø / 0.9 L | AA31: 31 cm Ø / 12 L | AB31: Topfsubstrat: C700 Stender | AC31: Topfsubstrat: C700 Stender | AD31: 45 sonnenliebende Pflanzen ab Blüte (ca. 810 µmol/m²)
A32: Tomaten-Kurzkultur | B32: Apr-Sep | C32: SO | D32: GWH-KAB | E32: Vermehrung-Abreife | F32: Stecklinge / Aussaat | G32: sehr gut | H32: 4-5 | I32: 19 | J32: 19 | K32: 60 | L32: 60 | M32: 25 | N32: 37.418976 | O32: 9.354744 | P32: 9.354744 | Q32: 0 | R32: 0 | S32: 0 | T32: Anstaubewässerung | U32: VE: STW (3:1) Verschnitt (pH: 7,7 / ≈ 7° dH (rechnerisch) / EC ≈ 0.25 ms) | V32: Bewässerungsdüngung | X32: bei jeder Bewässerung | Y32: 1.5 - 3.0 | Z32: 13 cm Ø / 0.9 L | AB32: Topfsubstrat: C700 Stender | AC32: Topfsubstrat: C700 Stender | AD32: 45 sonnenliebende Pflanzen ab Blüte (ca. 810 µmol/m²)
A33: Tomaten-Kurzkultur | B33: Okt-März | C33: WI | D33: GWH-KAB | E33: Vermehrung-Abreife | F33: Stecklinge / Aussaat | G33: problematisch | H33: 4-5 | I33: 16 | J33: 16 | K33: 60 | L33: 60 | M33: 25 | N33: 69.66295822 | O33: 17.41573956 | P33: 3.015739556 | Q33: 14.4 | R33: 200 | S33: 20 | T33: Anstaubewässerung | U33: VE: STW (3:1) Verschnitt (pH: 7,7 / ≈ 7° dH (rechnerisch) / EC ≈ 0.25 ms) | V33: Bewässerungsdüngung | X33: bei jeder Bewässerung | Y33: 1.5 - 3.0 | Z33: 13 cm Ø / 0.9 L | AB33: Topfsubstrat: C700 Stender | AC33: Topfsubstrat: C700 Stender | AD33: 45 sonnenliebende Pflanzen ab Blüte (ca. 810 µmol/m²)
A34: Tomaten-Kurzkultur | B34: Apr-Sep | C34: SO | D34: GWH | E34: Vermehrung-Abreife | F34: Stecklinge / Aussaat | G34: sehr gut | H34: 4-5 | I34: 19 | J34: 19 | M34: 25 | N34: 65.483208 | O34: 16.370802 | P34: 16.370802 | Q34: 0 | R34: 0 | S34: 0 | T34: Anstaubewässerung | U34: VE: STW (3:1) Verschnitt (pH: 7,7 / ≈ 7° dH (rechnerisch) / EC ≈ 0.25 ms) | V34: Bewässerungsdüngung | X34: bei jeder Bewässerung | Y34: 1.5 - 3.0 | Z34: 13 cm Ø / 0.9 L | AB34: Topfsubstrat: C700 Stender | AC34: Topfsubstrat: C700 Stender | AD34: 45 sonnenliebende Pflanzen ab Blüte (ca. 810 µmol/m²)
A35: Tomaten-Kurzkultur | B35: Okt-März | C35: WI | D35: GWH | E35: Vermehrung-Abreife | F35: Stecklinge / Aussaat | G35: problematisch | H35: 4-5 | I35: 16 | J35: 16 | M35: 25 | N35: 35.51017689 | O35: 8.877544222 | P35: 5.277544222 | Q35: 3.6 | R35: 50 | S35: 20 | T35: Anstaubewässerung | U35: VE: STW (3:1) Verschnitt (pH: 7,7 / ≈ 7° dH (rechnerisch) / EC ≈ 0.25 ms) | V35: Bewässerungsdüngung | X35: bei jeder Bewässerung | Y35: 1.5 - 3.0 | Z35: 13 cm Ø / 0.9 L | AB35: Topfsubstrat: C700 Stender | AC35: Topfsubstrat: C700 Stender | AD35: 45 sonnenliebende Pflanzen ab Blüte (ca. 810 µmol/m²)
A36: Tomaten-Kurzkultur | B36: Apr-Sep | C36: SO | D36: PAR | E36: Vermehrung-Abreife | F36: Stecklinge / Aussaat | G36: sehr gut | H36: 4-5 | I36: 19 | J36: 19 | K36: 60 | L36: 60 | M36: 25 | N36: 92.16 | O36: =(P36+Q36) -> 23.04 | Q36: 23.04 | R36: 400 | S36: 16 | T36: Anstaubewässerung | U36: VE: STW (3:1) Verschnitt (pH: 7,7 / ≈ 7° dH (rechnerisch) / EC ≈ 0.25 ms) | V36: Bewässerungsdüngung | X36: bei jeder Bewässerung | Y36: 1.5 - 3.0 | Z36: 13 cm Ø / 0.9 L | AB36: Topfsubstrat: C700 Stender | AC36: Topfsubstrat: C700 Stender | AD36: 45 sonnenliebende Pflanzen ab Blüte (ca. 810 µmol/m²)
A37: Tomaten-Kurzkultur | B37: Okt-März | C37: WI | D37: PAR | E37: Vermehrung-Abreife | F37: Stecklinge / Aussaat | G37: problematisch | H37: 4-5 | I37: 16 | J37: 16 | K37: 60 | L37: 60 | M37: 25 | N37: 92.16 | O37: 23.04 | Q37: 23.04 | R37: 400 | S37: 16 | T37: Anstaubewässerung | U37: VE: STW (3:1) Verschnitt (pH: 7,7 / ≈ 7° dH (rechnerisch) / EC ≈ 0.25 ms) | V37: Bewässerungsdüngung | X37: bei jeder Bewässerung | Y37: 1.5 - 3.0 | Z37: 13 cm Ø / 0.9 L | AB37: Topfsubstrat: C700 Stender | AC37: Topfsubstrat: C700 Stender | AD37: 45 sonnenliebende Pflanzen ab Blüte (ca. 810 µmol/m²)
A38: Arabidopsis spp. | B38: Apr-Sep | C38: SO | D38: GWH-KAB | E38: Aussaat-Ernte | F38: Aussaat | G38: gut | H38: 3-4 | I38: 22 | J38: 18 | K38: 50 | L38: 60 | M38: 11 | N38: 85.04312727 | O38: 9.354744 | P38: 9.354744 | Q38: 0 | T38: Anstaubewässerung | U38: VE: STW (1:1) Verschnitt (≈ 11° dH (rechnerisch)) | V38: Bewässerungsdüngung | X38: bei jeder Bewässerung | Y38: 0.5-1 | Z38: 9 cm Ø / 0.3 L | AB38: Topfsubstrat: C700 Stender | AD38: 30 lichtempfindliche Pflanzen (ca. 540 µmol/m²s)
A39: Arabidopsis spp. | B39: Okt-März | C39: WI | D39: GWH-KAB | E39: Aussaat-Ernte | F39: Aussaat | G39: gut | H39: 3-4 | I39: 22 | J39: 18 | K39: 50 | L39: 60 | M39: 11 | N39: 105.9612687 | O39: 11.65573956 | P39: 3.015739556 | Q39: 8.64 | R39: 150 | S39: 16 | T39: Anstaubewässerung | U39: VE: STW (1:1) Verschnitt (≈ 11° dH (rechnerisch)) | V39: Bewässerungsdüngung | X39: bei jeder Bewässerung | Y39: 0.5-1 | Z39: 9 cm Ø / 0.3 L | AB39: Topfsubstrat: C700 Stender | AD39: 30 lichtempfindliche Pflanzen (ca. 540 µmol/m²s)
A40: Arabidopsis spp. | B40: Apr-Sep | C40: SO | D40: GWH | E40: Aussaat-Ernte | F40: Aussaat | G40: gut | H40: 3-4 | I40: 22 | J40: 18 | K40: 50 | L40: 60 | M40: 11 | N40: =(100*O40)/M40 -> 148.8254727 | O40: 16.370802 | P40: 16.370802 | Q40: =R40*S40*0.0036 -> 0 | T40: Anstaubewässerung | U40: VE: STW (1:1) Verschnitt (≈ 11° dH (rechnerisch)) | V40: Bewässerungsdüngung | X40: bei jeder Bewässerung | Y40: 0.5-1 | Z40: 9 cm Ø / 0.3 L | AB40: Topfsubstrat: C700 Stender | AD40: 30 lichtempfindliche Pflanzen (ca. 540 µmol/m²s)
A41: Arabidopsis spp. | B41: Okt-März | C41: WI | D41: GWH | E41: Aussaat-Ernte | F41: Aussaat | G41: gut | H41: 3-4 | I41: 22 | J41: 18 | K41: 50 | L41: 60 | M41: 11 | N41: 74.15949293 | O41: 8.157544222 | P41: 5.277544222 | Q41: 2.88 | R41: 50 | S41: 16 | T41: Anstaubewässerung | U41: VE: STW (1:1) Verschnitt (≈ 11° dH (rechnerisch)) | V41: Bewässerungsdüngung | X41: bei jeder Bewässerung | Y41: 0.5-1 | Z41: 9 cm Ø / 0.3 L | AB41: Topfsubstrat: C700 Stender | AD41: 30 lichtempfindliche Pflanzen (ca. 540 µmol/m²s)
A42: Arabidopsis spp. | B42: Apr-Sep | C42: SO | D42: PAR | E42: Aussaat-Ernte | F42: Aussaat | G42: sehr gut | H42: 3-4 | I42: 22 | J42: 18 | K42: 50 | L42: 60 | M42: 11 | N42: 78.54545455 | O42: 8.64 | Q42: 8.64 | R42: 150 | S42: 16 | T42: Anstaubewässerung | U42: VE: STW (1:1) Verschnitt (≈ 11° dH (rechnerisch)) | V42: Bewässerungsdüngung | X42: bei jeder Bewässerung | Y42: 0.5-1 | Z42: 9 cm Ø / 0.3 L | AB42: Topfsubstrat: C700 Stender
A43: Arabidopsis spp. | B43: Okt-März | C43: WI | D43: PAR | E43: Aussaat-Ernte | F43: Aussaat | G43: sehr gut | H43: 3-4 | I43: 22 | J43: 18 | K43: 50 | L43: 60 | M43: 11 | N43: 78.54545455 | O43: 8.64 | Q43: 8.64 | R43: 150 | S43: 16 | T43: Anstaubewässerung | U43: VE: STW (1:1) Verschnitt (≈ 11° dH (rechnerisch)) | V43: Bewässerungsdüngung | X43: bei jeder Bewässerung | Y43: 0.5-1 | Z43: 9 cm Ø / 0.3 L | AB43: Topfsubstrat: C700 Stender
A44: Lotus | B44: Apr-Sep | C44: SO | D44: GWH-KAB | E44: Saatgut-Ernte | F44: Aussaat | G44: gut | H44: 8 | I44: 20 | J44: 20 | K44: 60 | L44: 60 | M44: 20 | N44: 104.37372 | O44: 20.874744 | P44: 9.354744 | Q44: 11.52 | R44: 200 | S44: 16 | T44: Anstaubewässerung | U44: VE: STW (1:1) Verschnitt (≈ 11° dH (rechnerisch)) | V44: Bewässerungsdüngung | W44: Universol-Blue | X44: bei jeder Bewässerung | Y44: 0.3-0.6 / 1.4 - 2.0 / 1.4 - 2.0 | Z44: 9 cm Ø / 0.3 L | AA44: 17 cm Ø / 2 L | AB44: C700 : E910 (2:1) + 10% Bims (ZL*) | AC44: C700 : E910 (2:1) + 10% Bims (ZL*) | AD44: 40 sonnenliebende Pflanzen ab Blüte (ca. 720 µmol/m²)
A45: Lotus | B45: Okt-März | C45: WI | D45: GWH-KAB | E45: Saatgut-Ernte | F45: Aussaat | G45: gut | H45: 8 | I45: 20 | J45: 20 | K45: 60 | L45: 60 | M45: 20 | N45: 72.67869778 | O45: 14.53573956 | P45: 3.015739556 | Q45: 11.52 | R45: 200 | S45: 16 | T45: Anstaubewässerung | U45: VE: STW (1:1) Verschnitt (≈ 11° dH (rechnerisch)) | V45: Bewässerungsdüngung | W45: Universol-Blue | X45: bei jeder Bewässerung | Y45: 0.3-0.6 / 1.4 - 2.0 / 1.4 - 2.0 | Z45: 9 cm Ø / 0.3 L | AA45: 17 cm Ø / 2 L | AB45: C700 : E910 (2:1) + 10% Bims (ZL*) | AC45: C700 : E910 (2:1) + 10% Bims (ZL*)
A46: Lotus | B46: Apr-Sep | C46: SO | D46: GWH | E46: Saatgut-Ernte | F46: Aussaat | G46: problematisch | H46: 4 | I46: 20 | J46: 20 | M46: 20 | N46: 81.85401 | O46: 16.370802 | P46: 16.370802 | Q46: 0 | T46: Anstaubewässerung | U46: VE: STW (1:1) Verschnitt (≈ 11° dH (rechnerisch)) | V46: Bewässerungsdüngung | W46: Universol-Blue | X46: bei jeder Bewässerung | Y46: 0.3-0.6 / 1.4 - 2.0 / 1.4 - 2.0 | Z46: 9 cm Ø / 0.3 L | AA46: 17 cm Ø / 2 L | AB46: C700 : E910 (2:1) + 10% Bims (ZL*) | AC46: C700 : E910 (2:1) + 10% Bims (ZL*) | AD46: 70 sonnenliebende Pflanzen Wachstumsphaste (ca. 1260 µmol/m²*s)
A47: Lotus | B47: Okt-März | C47: WI | D47: GWH | E47: Saatgut-Ernte | F47: Aussaat | G47: gut | H47: 5 | I47: 20 | J47: 20 | M47: 20 | N47: 83.98772111 | O47: 16.79754422 | P47: 5.277544222 | Q47: 11.52 | R47: 200 | S47: 16 | T47: Anstaubewässerung | U47: VE: STW (1:1) Verschnitt (≈ 11° dH (rechnerisch)) | V47: Bewässerungsdüngung | W47: Universol-Blue | X47: bei jeder Bewässerung | Y47: 0.3-0.6 / 1.4 - 2.0 / 1.4 - 2.0 | Z47: 9 cm Ø / 0.3 L | AA47: 17 cm Ø / 2 L | AB47: C700 : E910 (2:1) + 10% Bims (ZL*) | AC47: C700 : E910 (2:1) + 10% Bims (ZL*)
A48: Lotus | B48: Apr-Sep | C48: SO | D48: PAR | E48: Saatgut-Ernte | F48: Aussaat | G48: sehr gut | H48: 8 | I48: 20 | J48: 20 | K48: 60 | L48: 60 | M48: 20 | N48: 115.2 | O48: 23.04 | Q48: 23.04 | R48: 400 | S48: 16 | T48: Anstaubewässerung | U48: VE: STW (1:1) Verschnitt (≈ 11° dH (rechnerisch)) | V48: Bewässerungsdüngung | W48: Universol-Blue | X48: bei jeder Bewässerung | Y48: 0.3-0.6 / 1.4 - 2.0 / 1.4 - 2.0 | Z48: 9 cm Ø / 0.3 L | AA48: 17 cm Ø / 2 L | AB48: C700 : E910 (2:1) + 10% Bims (ZL*) | AC48: C700 : E910 (2:1) + 10% Bims (ZL*)
A49: Lotus | B49: Okt-März | C49: WI | D49: PAR | E49: Saatgut-Ernte | F49: Aussaat | G49: sehr gut | H49: 8 | I49: 20 | J49: 20 | K49: 60 | L49: 60 | M49: 20 | N49: 115.2 | O49: 23.04 | Q49: 23.04 | R49: 400 | S49: 16 | T49: Anstaubewässerung | U49: VE: STW (1:1) Verschnitt (≈ 11° dH (rechnerisch)) | V49: Bewässerungsdüngung | W49: Universol-Blue | X49: bei jeder Bewässerung | Y49: 0.3-0.6 / 1.4 - 2.0 / 1.4 - 2.0 | Z49: 9 cm Ø / 0.3 L | AA49: 17 cm Ø / 2 L | AB49: C700 : E910 (2:1) + 10% Bims (ZL*) | AC49: C700 : E910 (2:1) + 10% Bims (ZL*)
A50: Erdbeeren (Fragaria spp.) | B50: Apr-Sep | C50: SO | D50: GWH-KAB | E50: Vermehrung-Ernte | F50: Jungpflanzen | G50: sehr gut | H50: 8 | I50: 20 | J50: 18 | K50: 60 | L50: 60 | M50: 20 | N50: 104.37372 | O50: 20.874744 | P50: 9.354744 | Q50: 11.52 | R50: 200 | S50: 16 | T50: Tröpfchenbewässerung | U50: VE: STW (3:1) Verschnitt (pH: 7,7 / ≈ 7° dH (rechnerisch) / EC ≈ 0.25 ms) | V50: Bewässerungsdüngung | X50: bei jeder Bewässerung | Y50: 0.5-1 | Z50: 17 cm Ø / 2 L | AB50: Topfsubstrat: C700 Stender | AD50: 40 sonnenliebende Pflanzen ab Blüte (ca. 720 µmol/m²)
A51: Erdbeeren (Fragaria spp.) | B51: Okt-März | C51: WI | D51: GWH-KAB | E51: Vermehrung-Ernte | F51: Jungpflanzen | G51: problematisch | H51: 8 | I51: 20 | J51: 18 | K51: 60 | L51: 60 | M51: 20 | N51: 72.67869778 | O51: 14.53573956 | P51: 3.015739556 | Q51: 11.52 | R51: 200 | S51: 16 | T51: Tröpfchenbewässerung | U51: VE: STW (3:1) Verschnitt (pH: 7,7 / ≈ 7° dH (rechnerisch) / EC ≈ 0.25 ms) | V51: Bewässerungsdüngung | X51: bei jeder Bewässerung | Y51: 0.5-1 | Z51: 17 cm Ø / 2 L | AB51: Topfsubstrat: C700 Stender | AD51: 40 sonnenliebende Pflanzen ab Blüte (ca. 720 µmol/m²)
A52: Erdbeeren (Fragaria spp.) | B52: Apr-Sep | C52: SO | D52: GWH | E52: Vermehrung-Ernte | F52: Jungpflanzen | G52: sehr gut | H52: 8 | I52: 20 | J52: 18 | M52: 20 | N52: 81.85401 | O52: 16.370802 | P52: 16.370802 | Q52: 0 | T52: Tröpfchenbewässerung | U52: VE: STW (3:1) Verschnitt (pH: 7,7 / ≈ 7° dH (rechnerisch) / EC ≈ 0.25 ms) | V52: Bewässerungsdüngung | X52: bei jeder Bewässerung | Y52: 0.5-1 | Z52: 17 cm Ø / 2 L | AB52: Topfsubstrat: C700 Stender | AD52: 40 sonnenliebende Pflanzen ab Blüte (ca. 720 µmol/m²)
A53: Erdbeeren (Fragaria spp.) | B53: Okt-März | C53: WI | D53: GWH | E53: Vermehrung-Ernte | F53: Jungpflanzen | G53: problematisch | H53: 8 | I53: 20 | J53: 18 | M53: 20 | N53: 55.18772111 | O53: 11.03754422 | P53: 5.277544222 | Q53: 5.76 | R53: 100 | S53: 16 | T53: Tröpfchenbewässerung | U53: VE: STW (3:1) Verschnitt (pH: 7,7 / ≈ 7° dH (rechnerisch) / EC ≈ 0.25 ms) | V53: Bewässerungsdüngung | X53: bei jeder Bewässerung | Y53: 0.5-1 | Z53: 17 cm Ø / 2 L | AB53: Topfsubstrat: C700 Stender | AD53: 40 sonnenliebende Pflanzen ab Blüte (ca. 720 µmol/m²)
A54: Erdbeeren (Fragaria spp.) | B54: Apr-Sep | C54: SO | D54: PAR | E54: Vermehrung-Ernte | F54: Jungpflanzen | G54: sehr gut | H54: 8 | I54: 20 | J54: 18 | K54: 60 | L54: 60 | M54: 20 | N54: 100.8 | O54: 20.16 | Q54: 20.16 | R54: 350 | S54: 16 | T54: Tröpfchenbewässerung | U54: VE: STW (3:1) Verschnitt (pH: 7,7 / ≈ 7° dH (rechnerisch) / EC ≈ 0.25 ms) | V54: Bewässerungsdüngung | X54: bei jeder Bewässerung | Y54: 0.5-1 | Z54: 17 cm Ø / 2 L | AB54: Topfsubstrat: C700 Stender
A55: Erdbeeren (Fragaria spp.) | B55: Okt-März | C55: WI | D55: PAR | E55: Vermehrung-Ernte | F55: Jungpflanzen | G55: sehr gut | H55: 8 | I55: 20 | J55: 18 | K55: 60 | L55: 60 | M55: 20 | N55: 100.8 | O55: 20.16 | Q55: 20.16 | R55: 350 | S55: 16 | T55: Tröpfchenbewässerung | U55: VE: STW (3:1) Verschnitt (pH: 7,7 / ≈ 7° dH (rechnerisch) / EC ≈ 0.25 ms) | V55: Bewässerungsdüngung | X55: bei jeder Bewässerung | Y55: 0.5-1 | Z55: 17 cm Ø / 2 L | AB55: Topfsubstrat: C700 Stender
A56: Mais (Zea mays) | B56: Apr-Sep | C56: SO | D56: GWH-KAB | E56: Vermehrung-Ernte | F56: Aussaat | G56: gut | H56: 6 | I56: 24 | J56: 22 | K56: 60 | L56: 60 | M56: 25 | N56: 83.498976 | O56: 20.874744 | P56: 9.354744 | Q56: 11.52 | R56: 200 | S56: 16 | T56: Tröpfchenbewässerung | U56: VE: STW (3:1) Verschnitt (pH: 7,7 / ≈ 7° dH (rechnerisch) / EC ≈ 0.25 ms) | V56: Bewässerungsdüngung | X56: bei jeder Bewässerung | Y56: 0.5-1 | Z56: 33 cm Ø / 15 L | AB56: Topfsubstrat: C700 Stender | AD56: keine Schattierung
A57: Mais (Zea mays) | B57: Okt-März | C57: WI | D57: GWH-KAB | E57: Vermehrung-Ernte | F57: Aussaat | G57: problematisch | H57: 6 | I57: 24 | J57: 22 | K57: 60 | L57: 60 | M57: 25 | N57: 58.14295822 | O57: 14.53573956 | P57: 3.015739556 | Q57: 11.52 | R57: 200 | S57: 16 | T57: Tröpfchenbewässerung | U57: VE: STW (3:1) Verschnitt (pH: 7,7 / ≈ 7° dH (rechnerisch) / EC ≈ 0.25 ms) | V57: Bewässerungsdüngung | X57: bei jeder Bewässerung | Y57: 0.5-1 | Z57: 33 cm Ø / 15 L | AB57: Topfsubstrat: C700 Stender | AD57: keine Schattierung
A58: Mais (Zea mays) | B58: Apr-Sep | C58: SO | D58: GWH | E58: Vermehrung-Ernte | F58: Aussaat | G58: sehr gut | H58: 6 | I58: 24 | J58: 22 | M58: 25 | N58: 125.963208 | O58: 31.490802 | P58: 16.370802 | Q58: 15.12 | R58: 350 | S58: 12 | T58: Tröpfchenbewässerung | U58: VE: STW (3:1) Verschnitt (pH: 7,7 / ≈ 7° dH (rechnerisch) / EC ≈ 0.25 ms) | V58: Bewässerungsdüngung | X58: bei jeder Bewässerung | Y58: 0.5-1 | Z58: 33 cm Ø / 15 L | AB58: Topfsubstrat: C700 Stender | AD58: keine Schattierung
A59: Mais (Zea mays) | B59: Okt-März | C59: WI | D59: GWH | E59: Vermehrung-Ernte | F59: Aussaat | G59: problematisch | H59: 6 | I59: 24 | J59: 22 | M59: 25 | N59: 101.7501769 | O59: 25.43754422 | P59: 5.277544222 | Q59: 20.16 | R59: 350 | S59: 16 | T59: Tröpfchenbewässerung | U59: VE: STW (3:1) Verschnitt (pH: 7,7 / ≈ 7° dH (rechnerisch) / EC ≈ 0.25 ms) | V59: Bewässerungsdüngung | X59: bei jeder Bewässerung | Y59: 0.5-1 | Z59: 33 cm Ø / 15 L | AB59: Topfsubstrat: C700 Stender | AD59: keine Schattierung
A60: Mais (Zea mays) | B60: Apr-Sep | C60: SO | D60: PAR | E60: Vermehrung-Ernte | F60: Aussaat | G60: sehr gut | H60: 6 | I60: 24 | J60: 22 | K60: 60 | L60: 60 | M60: 25 | N60: 92.16 | O60: 23.04 | Q60: 23.04 | R60: 400 | S60: 16 | T60: Tröpfchenbewässerung | U60: VE: STW (3:1) Verschnitt (pH: 7,7 / ≈ 7° dH (rechnerisch) / EC ≈ 0.25 ms) | V60: Bewässerungsdüngung | X60: bei jeder Bewässerung | Y60: 0.5-1 | Z60: 33 cm Ø / 15 L | AB60: Topfsubstrat: C700 Stender
A61: Mais (Zea mays) | B61: Okt-März | C61: WI | D61: PAR | E61: Vermehrung-Ernte | F61: Aussaat | G61: sehr gut | H61: 6 | I61: 24 | J61: 22 | K61: 60 | L61: 60 | M61: 25 | N61: 92.16 | O61: 23.04 | Q61: 23.04 | R61: 400 | S61: 16 | T61: Tröpfchenbewässerung | U61: VE: STW (3:1) Verschnitt (pH: 7,7 / ≈ 7° dH (rechnerisch) / EC ≈ 0.25 ms) | V61: Bewässerungsdüngung | X61: bei jeder Bewässerung | Y61: 0.5-1 | Z61: 33 cm Ø / 15 L | AB61: Topfsubstrat: C700 Stender
A62: Crassocephalum | B62: Apr-Sep | C62: SO | D62: GWH-KAB | E62: Vermehrung-Ernte | F62: Aussaat | G62: gut | H62: 6 | I62: 25 | J62: 25 | K62: 65 | L62: 65 | M62: 25 | N62: 83.498976 | O62: 20.874744 | P62: 9.354744 | Q62: 11.52 | R62: 200 | S62: 16 | T62: Tröpfchenbewässerung | U62: VE: STW (3:1) Verschnitt (pH: 7,7 / ≈ 7° dH (rechnerisch) / EC ≈ 0.25 ms) | V62: Bewässerungsdüngung | X62: bei jeder Bewässerung | Y62: 0.5-1 | Z62: 19 cm Ø / 3 L | AA62: 31 cm Ø / 12 L | AB62: Topfsubstrat: C700 Stender | AC62: Topfsubstrat: C700 Stender | AD62: 80 sehr sonnenliebende Pflanzen (Wachstumsphase)
A63: Crassocephalum | B63: Okt-März | C63: WI | D63: GWH-KAB | E63: Vermehrung-Ernte | F63: Aussaat | G63: problematisch | H63: 6 | I63: 25 | J63: 25 | K63: 65 | L63: 65 | M63: 25 | N63: 58.14295822 | O63: 14.53573956 | P63: 3.015739556 | Q63: 11.52 | R63: 200 | S63: 16 | T63: Tröpfchenbewässerung | U63: VE: STW (3:1) Verschnitt (pH: 7,7 / ≈ 7° dH (rechnerisch) / EC ≈ 0.25 ms) | V63: Bewässerungsdüngung | X63: bei jeder Bewässerung | Y63: 0.5-1 | Z63: 19 cm Ø / 3 L | AA63: 31 cm Ø / 12 L | AB63: Topfsubstrat: C700 Stender | AC63: Topfsubstrat: C700 Stender | AD63: 80 sehr sonnenliebende Pflanzen (Wachstumsphase)
A64: Crassocephalum | B64: Apr-Sep | C64: SO | D64: GWH | E64: Vermehrung-Ernte | F64: Aussaat | G64: sehr gut | H64: 6 | I64: 25 | J64: 25 | M64: 25 | N64: 65.483208 | O64: 16.370802 | P64: 16.370802 | Q64: 0 | T64: Tröpfchenbewässerung | U64: VE: STW (3:1) Verschnitt (pH: 7,7 / ≈ 7° dH (rechnerisch) / EC ≈ 0.25 ms) | V64: Bewässerungsdüngung | X64: bei jeder Bewässerung | Y64: 0.5-1 | Z64: 19 cm Ø / 3 L | AA64: 31 cm Ø / 12 L | AB64: Topfsubstrat: C700 Stender | AC64: Topfsubstrat: C700 Stender | AD64: 80 sehr sonnenliebende Pflanzen (Wachstumsphase)
A65: Crassocephalum | B65: Okt-März | C65: WI | D65: GWH | E65: Vermehrung-Ernte | F65: Aussaat | G65: problematisch | H65: 6 | I65: 25 | J65: 25 | M65: 25 | N65: 32.63017689 | O65: 8.157544222 | P65: 5.277544222 | Q65: 2.88 | R65: 50 | S65: 16 | T65: Tröpfchenbewässerung | U65: VE: STW (3:1) Verschnitt (pH: 7,7 / ≈ 7° dH (rechnerisch) / EC ≈ 0.25 ms) | V65: Bewässerungsdüngung | X65: bei jeder Bewässerung | Y65: 0.5-1 | Z65: 19 cm Ø / 3 L | AA65: 31 cm Ø / 12 L | AB65: Topfsubstrat: C700 Stender | AC65: Topfsubstrat: C700 Stender | AD65: 80 sehr sonnenliebende Pflanzen (Wachstumsphase)
A66: Crassocephalum | B66: Apr-Sep | C66: SO | D66: PAR | E66: Vermehrung-Ernte | F66: Aussaat | G66: sehr gut | H66: 6 | I66: 25 | J66: 25 | K66: 65 | L66: 65 | M66: 25 | N66: 92.16 | O66: 23.04 | Q66: 23.04 | R66: 400 | S66: 16 | T66: Tröpfchenbewässerung | U66: VE: STW (3:1) Verschnitt (pH: 7,7 / ≈ 7° dH (rechnerisch) / EC ≈ 0.25 ms) | V66: Bewässerungsdüngung | X66: bei jeder Bewässerung | Y66: 0.5-1 | Z66: 19 cm Ø / 3 L | AA66: 31 cm Ø / 12 L | AB66: Topfsubstrat: C700 Stender | AC66: Topfsubstrat: C700 Stender
A67: Crassocephalum | B67: Okt-März | C67: WI | D67: PAR | E67: Vermehrung-Ernte | F67: Aussaat | G67: sehr gut | H67: 6 | I67: 25 | J67: 25 | K67: 65 | L67: 65 | M67: 25 | N67: 92.16 | O67: 23.04 | Q67: 23.04 | R67: 400 | S67: 16 | T67: Tröpfchenbewässerung | U67: VE: STW (3:1) Verschnitt (pH: 7,7 / ≈ 7° dH (rechnerisch) / EC ≈ 0.25 ms) | V67: Bewässerungsdüngung | X67: bei jeder Bewässerung | Y67: 0.5-1 | Z67: 19 cm Ø / 3 L | AA67: 31 cm Ø / 12 L | AB67: Topfsubstrat: C700 Stender | AC67: Topfsubstrat: C700 Stender
A68: Sonnenblumen (Helianthus spp.) | B68: Apr-Sep | C68: SO | D68: GWH-KAB | E68: Vermehrung-Ernte | F68: Aussaat | G68: gut | H68: 4 | I68: 19 | J68: 19 | K68: 65 | L68: 65 | M68: 23 | N68: 90.75975652 | O68: 20.874744 | P68: 9.354744 | Q68: 11.52 | R68: 200 | S68: 16 | T68: Anstaubewässerung | U68: VE: STW (3:1) Verschnitt (pH: 7,7 / ≈ 7° dH (rechnerisch) / EC ≈ 0.25 ms) | V68: Bewässerungsdüngung | X68: bei jeder Bewässerung | Y68: 0.5-1 | AA68: 19 cm Ø / 3 L | AB68: Topfsubstrat: C700 Stender | AD68: 60 sonnenliebende Pflanzen Wachstumsphaste (ca. 1080 µmol/m²*s)
A69: Sonnenblumen (Helianthus spp.) | B69: Okt-März | C69: WI | D69: GWH-KAB | E69: Vermehrung-Ernte | F69: Aussaat | G69: problematisch | H69: 4 | I69: 19 | J69: 19 | K69: 65 | L69: 65 | M69: 23 | N69: 63.19886763 | O69: 14.53573956 | P69: 3.015739556 | Q69: 11.52 | R69: 200 | S69: 16 | T69: Anstaubewässerung | U69: VE: STW (3:1) Verschnitt (pH: 7,7 / ≈ 7° dH (rechnerisch) / EC ≈ 0.25 ms) | V69: Bewässerungsdüngung | X69: bei jeder Bewässerung | Y69: 0.5-1 | AA69: 19 cm Ø / 3 L | AB69: Topfsubstrat: C700 Stender | AD69: 60 sonnenliebende Pflanzen Wachstumsphaste (ca. 1080 µmol/m²*s)
A70: Sonnenblumen (Helianthus spp.) | B70: Apr-Sep | C70: SO | D70: GWH | E70: Vermehrung-Ernte | F70: Aussaat | G70: sehr gut | H70: 4 | I70: 19 | J70: 19 | M70: 23 | N70: 83.69913913 | O70: 19.250802 | P70: 16.370802 | Q70: 2.88 | R70: 50 | S70: 16 | T70: Anstaubewässerung | U70: VE: STW (3:1) Verschnitt (pH: 7,7 / ≈ 7° dH (rechnerisch) / EC ≈ 0.25 ms) | V70: Bewässerungsdüngung | X70: bei jeder Bewässerung | Y70: 0.5-1 | AA70: 19 cm Ø / 3 L | AB70: Topfsubstrat: C700 Stender | AD70: 60 sonnenliebende Pflanzen Wachstumsphaste (ca. 1080 µmol/m²*s)
A71: Sonnenblumen (Helianthus spp.) | B71: Okt-März | C71: WI | D71: GWH | E71: Vermehrung-Ernte | F71: Aussaat | G71: problematisch | H71: 4 | I71: 19 | J71: 19 | M71: 23 | N71: 35.46758357 | O71: 8.157544222 | P71: 5.277544222 | Q71: 2.88 | R71: 50 | S71: 16 | T71: Anstaubewässerung | U71: VE: STW (3:1) Verschnitt (pH: 7,7 / ≈ 7° dH (rechnerisch) / EC ≈ 0.25 ms) | V71: Bewässerungsdüngung | X71: bei jeder Bewässerung | Y71: 0.5-1 | AA71: 19 cm Ø / 3 L | AB71: Topfsubstrat: C700 Stender | AD71: 60 sonnenliebende Pflanzen Wachstumsphaste (ca. 1080 µmol/m²*s)
A72: Sonnenblumen (Helianthus spp.) | B72: Apr-Sep | C72: SO | D72: PAR | E72: Vermehrung-Ernte | F72: Aussaat | G72: sehr gut | H72: 4 | I72: 19 | J72: 19 | K72: 65 | L72: 65 | M72: 23 | N72: =(100*O72)/M72 -> 100.173913 | O72: 23.04 | Q72: =R72*S72*0.0036 -> 23.04 | R72: 400 | S72: 16 | T72: Anstaubewässerung | U72: VE: STW (3:1) Verschnitt (pH: 7,7 / ≈ 7° dH (rechnerisch) / EC ≈ 0.25 ms) | V72: Bewässerungsdüngung | X72: bei jeder Bewässerung | Y72: 0.5-1 | AA72: 19 cm Ø / 3 L | AB72: Topfsubstrat: C700 Stender
A73: Sonnenblumen (Helianthus spp.) | B73: Okt-März | C73: WI | D73: PAR | E73: Vermehrung-Ernte | F73: Aussaat | G73: sehr gut | H73: 4 | I73: 19 | J73: 19 | K73: 65 | L73: 65 | M73: 23 | N73: 100.173913 | O73: =(P73+Q73) -> 23.04 | Q73: 23.04 | R73: 400 | S73: 16 | T73: Anstaubewässerung | U73: VE: STW (3:1) Verschnitt (pH: 7,7 / ≈ 7° dH (rechnerisch) / EC ≈ 0.25 ms) | V73: Bewässerungsdüngung | X73: bei jeder Bewässerung | Y73: 0.5-1 | AA73: 19 cm Ø / 3 L | AB73: Topfsubstrat: C700 Stender
A74: Raps (Brassica napus) | B74: Apr-Sep | C74: SO | D74: GWH-KAB | E74: Vermehrung-Ernte | F74: Aussaat | G74: gut | H74: 4-5 / 6-9 | I74: 17 | J74: 17 | K74: 60 | L74: 60 | M74: 20 | N74: 104.37372 | O74: 20.874744 | P74: 9.354744 | Q74: 11.52 | R74: 200 | S74: 16 | T74: Anstaubewässerung | U74: VE: STW (3:1) Verschnitt (pH: 7,7 / ≈ 7° dH (rechnerisch) / EC ≈ 0.25 ms) | V74: Bewässerungsdüngung | X74: bei jeder Bewässerung | Y74: 0.5-1 | AA74: 19 cm Ø / 3 L | AB74: Topfsubstrat: C700 Stender | AD74: 40 sonnenliebende Pflanzen ab Blüte (ca. 720 µmol/m²) | AE74: je nach Sorte evt. 3-4 Wochen Vorkultur (18°C); 4 Wochen Vernalization (8°C)
A75: Raps (Brassica napus) | B75: Okt-März | C75: WI | D75: GWH-KAB | E75: Vermehrung-Ernte | F75: Aussaat | G75: problematisch | H75: 4-5 / 6-9 | I75: 17 | J75: 17 | K75: 60 | L75: 60 | M75: 20 | N75: 72.67869778 | O75: 14.53573956 | P75: 3.015739556 | Q75: 11.52 | R75: 200 | S75: 16 | T75: Anstaubewässerung | U75: VE: STW (3:1) Verschnitt (pH: 7,7 / ≈ 7° dH (rechnerisch) / EC ≈ 0.25 ms) | V75: Bewässerungsdüngung | X75: bei jeder Bewässerung | Y75: 0.5-1 | AA75: 19 cm Ø / 3 L | AB75: Topfsubstrat: C700 Stender | AD75: 40 sonnenliebende Pflanzen ab Blüte (ca. 720 µmol/m²) | AE75: je nach Sorte evt. 3-4 Wochen Vorkultur (18°C); 4 Wochen Vernalization (8°C)
A76: Raps (Brassica napus) | B76: Apr-Sep | C76: SO | D76: GWH | E76: Vermehrung-Ernte | F76: Aussaat | G76: sehr gut | H76: 4-5 / 6-9 | I76: 17 | J76: 17 | M76: 20 | N76: 81.85401 | O76: 16.370802 | P76: 16.370802 | Q76: 0 | T76: Anstaubewässerung | U76: VE: STW (3:1) Verschnitt (pH: 7,7 / ≈ 7° dH (rechnerisch) / EC ≈ 0.25 ms) | V76: Bewässerungsdüngung | X76: bei jeder Bewässerung | Y76: 0.5-1 | AA76: 19 cm Ø / 3 L | AB76: Topfsubstrat: C700 Stender | AD76: 40 sonnenliebende Pflanzen ab Blüte (ca. 720 µmol/m²) | AE76: je nach Sorte evt. 3-4 Wochen Vorkultur (18°C); 4 Wochen Vernalization (8°C)
A77: Raps (Brassica napus) | B77: Okt-März | C77: WI | D77: GWH | E77: Vermehrung-Ernte | F77: Aussaat | G77: problematisch | H77: 4-5 / 6-9 | I77: 17 | J77: 17 | M77: 20 | N77: 40.78772111 | O77: 8.157544222 | P77: 5.277544222 | Q77: 2.88 | R77: 50 | S77: 16 | T77: Anstaubewässerung | U77: VE: STW (3:1) Verschnitt (pH: 7,7 / ≈ 7° dH (rechnerisch) / EC ≈ 0.25 ms) | V77: Bewässerungsdüngung | X77: bei jeder Bewässerung | Y77: 0.5-1 | AA77: 19 cm Ø / 3 L | AB77: Topfsubstrat: C700 Stender | AD77: 40 sonnenliebende Pflanzen ab Blüte (ca. 720 µmol/m²) | AE77: je nach Sorte evt. 3-4 Wochen Vorkultur (18°C); 4 Wochen Vernalization (8°C)
A78: Raps (Brassica napus) | B78: Apr-Sep | C78: SO | D78: PAR | E78: Vermehrung-Ernte | F78: Aussaat | G78: sehr gut | H78: 4-5 / 6-9 | I78: 17 | J78: 17 | K78: 60 | L78: 60 | M78: 20 | N78: 100.8 | O78: 20.16 | Q78: 20.16 | R78: 350 | S78: 16 | T78: Anstaubewässerung | U78: VE: STW (3:1) Verschnitt (pH: 7,7 / ≈ 7° dH (rechnerisch) / EC ≈ 0.25 ms) | V78: Bewässerungsdüngung | X78: bei jeder Bewässerung | Y78: 0.5-1 | AA78: 19 cm Ø / 3 L | AB78: Topfsubstrat: C700 Stender | AE78: je nach Sorte evt. 3-4 Wochen Vorkultur (18°C); 4 Wochen Vernalization (8°C)
A79: Raps (Brassica napus) | B79: Okt-März | C79: WI | D79: PAR | E79: Vermehrung-Ernte | F79: Aussaat | G79: sehr gut | H79: 4-5 / 6-9 | I79: 17 | J79: 17 | K79: 60 | L79: 60 | M79: 20 | N79: 100.8 | O79: 20.16 | Q79: 20.16 | R79: 350 | S79: 16 | T79: Anstaubewässerung | U79: VE: STW (3:1) Verschnitt (pH: 7,7 / ≈ 7° dH (rechnerisch) / EC ≈ 0.25 ms) | V79: Bewässerungsdüngung | X79: bei jeder Bewässerung | Y79: 0.5-1 | AA79: 19 cm Ø / 3 L | AB79: Topfsubstrat: C700 Stender | AE79: je nach Sorte evt. 3-4 Wochen Vorkultur (18°C); 4 Wochen Vernalization (8°C)
A80: Wildtomaten (S. chilense ) Kurzkultur | B80: Apr-Sep | C80: SO | D80: GWH-KAB | E80: Vermehrung-Ernte | F80: Aussaat | G80: sehr gut | H80: 4-5 | I80: 20 | J80: 20 | K80: 60 | L80: 60 | M80: 25 | N80: 95.018976 | O80: 23.754744 | P80: 9.354744 | Q80: 14.4 | R80: 200 | S80: 20 | T80: Anstaubewässerung | U80: VE: STW (3:1) Verschnitt (pH: 7,7 / ≈ 7° dH (rechnerisch) / EC ≈ 0.25 ms) | V80: Bewässerungsdüngung | X80: bei jeder Bewässerung | Y80: 0.8 - 1.2 | Z80: 13 cm Ø / 0.9 L | AB80: Anzuchtsubstrat: A200 Stender | AC80: Topfsubstrat: C700 Stender | AD80: 45 sonnenliebende Pflanzen ab Blüte (ca. 810 µmol/m²)
A81: Wildtomaten (S. chilense ) Kurzkultur | B81: Okt-März | C81: WI | D81: GWH-KAB | E81: Vermehrung-Ernte | F81: Aussaat | G81: problematisch | H81: 4-5 | I81: 17 | J81: 17 | K81: 60 | L81: 60 | M81: 25 | N81: 69.66295822 | O81: 17.41573956 | P81: 3.015739556 | Q81: 14.4 | R81: 200 | S81: 20 | T81: Anstaubewässerung | U81: VE: STW (3:1) Verschnitt (pH: 7,7 / ≈ 7° dH (rechnerisch) / EC ≈ 0.25 ms) | V81: Bewässerungsdüngung | X81: bei jeder Bewässerung | Y81: 0.8 - 1.2 | Z81: 13 cm Ø / 0.9 L | AB81: Anzuchtsubstrat: A200 Stender | AC81: Topfsubstrat: C700 Stender | AD81: 45 sonnenliebende Pflanzen ab Blüte (ca. 810 µmol/m²)
A82: Wildtomaten (S. chilense ) Kurzkultur | B82: Apr-Sep | C82: SO | D82: GWH | E82: Vermehrung-Ernte | F82: Aussaat | G82: sehr gut | H82: 4-5 | I82: 20 | J82: 20 | K82: 60 | L82: 60 | M82: 25 | N82: 79.883208 | O82: 19.970802 | P82: 16.370802 | Q82: 3.6 | R82: 50 | S82: 20 | T82: Anstaubewässerung | U82: VE: STW (3:1) Verschnitt (pH: 7,7 / ≈ 7° dH (rechnerisch) / EC ≈ 0.25 ms) | V82: Bewässerungsdüngung | X82: bei jeder Bewässerung | Y82: 0.8 - 1.2 | Z82: 13 cm Ø / 0.9 L | AB82: Anzuchtsubstrat: A200 Stender | AC82: Topfsubstrat: C700 Stender | AD82: 45 sonnenliebende Pflanzen ab Blüte (ca. 810 µmol/m²)
A83: Wildtomaten (S. chilense ) Kurzkultur | B83: Okt-März | C83: WI | D83: GWH | E83: Vermehrung-Ernte | F83: Aussaat | G83: problematisch | H83: 4-5 | I83: 17 | J83: 17 | K83: 60 | L83: 60 | M83: 25 | N83: 35.51017689 | O83: 8.877544222 | P83: 5.277544222 | Q83: 3.6 | R83: 50 | S83: 20 | T83: Anstaubewässerung | U83: VE: STW (3:1) Verschnitt (pH: 7,7 / ≈ 7° dH (rechnerisch) / EC ≈ 0.25 ms) | V83: Bewässerungsdüngung | X83: bei jeder Bewässerung | Y83: 0.8 - 1.2 | Z83: 13 cm Ø / 0.9 L | AB83: Anzuchtsubstrat: A200 Stender | AC83: Topfsubstrat: C700 Stender | AD83: 45 sonnenliebende Pflanzen ab Blüte (ca. 810 µmol/m²)
A84: Wildtomaten (S. chilense ) Kurzkultur | B84: Apr-Sep | C84: SO | D84: PAR | E84: Vermehrung-Ernte | F84: Aussaat | G84: sehr gut | H84: 4-5 | I84: 20 | J84: 20 | K84: 60 | L84: 60 | M84: 25 | N84: 92.16 | O84: 23.04 | Q84: 23.04 | R84: 400 | S84: 16 | T84: Anstaubewässerung | U84: VE: STW (3:1) Verschnitt (pH: 7,7 / ≈ 7° dH (rechnerisch) / EC ≈ 0.25 ms) | V84: Bewässerungsdüngung | X84: bei jeder Bewässerung | Y84: 0.8 - 1.2 | Z84: 13 cm Ø / 0.9 L | AB84: Anzuchtsubstrat: A200 Stender | AC84: Topfsubstrat: C700 Stender | AD84: 45 sonnenliebende Pflanzen ab Blüte (ca. 810 µmol/m²)
A85: Wildtomaten (S. chilense ) Kurzkultur | B85: Okt-März | C85: WI | D85: PAR | E85: Vermehrung-Ernte | F85: Aussaat | G85: sehr gut | H85: 4-5 | I85: 20 | J85: 20 | K85: 60 | L85: 60 | M85: 25 | N85: 92.16 | O85: 23.04 | Q85: 23.04 | R85: 400 | S85: 16 | T85: Anstaubewässerung | U85: VE: STW (3:1) Verschnitt (pH: 7,7 / ≈ 7° dH (rechnerisch) / EC ≈ 0.25 ms) | V85: Bewässerungsdüngung | X85: bei jeder Bewässerung | Y85: 0.8 - 1.2 | Z85: 13 cm Ø / 0.9 L | AB85: Anzuchtsubstrat: A200 Stender | AC85: Topfsubstrat: C700 Stender | AD85: 45 sonnenliebende Pflanzen ab Blüte (ca. 810 µmol/m²)
A86: Wildtomaten (S. chilense ) Langkultur | B86: Apr-Sep | C86: SO | D86: GWH-KAB | E86: Vermehrung-Ernte | F86: Aussaat | G86: sehr gut | H86: 4-5 | I86: 20 | J86: 20 | K86: 60 | L86: 60 | M86: 25 | N86: 95.018976 | O86: =(P86+Q86) -> 23.754744 | P86: 9.354744 | Q86: 14.4 | R86: 200 | S86: 20 | T86: Tröpfchenbewässerung | U86: VE: STW (3:1) Verschnitt (pH: 7,7 / ≈ 7° dH (rechnerisch) / EC ≈ 0.25 ms) | V86: Bewässerungsdüngung | X86: bei jeder Bewässerung | Y86: 0.8 - 1.2 | Z86: 13 cm Ø / 0.9 L | AA86: 31 cm Ø / 12 L | AB86: Anzuchtsubstrat: A200 Stender | AC86: Topfsubstrat: C700 Stender | AD86: 45 sonnenliebende Pflanzen ab Blüte (ca. 810 µmol/m²)
A87: Wildtomaten (S. chilense ) Langkultur | B87: Okt-März | C87: WI | D87: GWH-KAB | E87: Vermehrung-Ernte | F87: Aussaat | G87: problematisch | H87: 4-5 | I87: 17 | J87: 17 | K87: 60 | L87: 60 | M87: 25 | N87: 69.66295822 | O87: 17.41573956 | P87: 3.015739556 | Q87: 14.4 | R87: 200 | S87: 20 | T87: Tröpfchenbewässerung | U87: VE: STW (3:1) Verschnitt (pH: 7,7 / ≈ 7° dH (rechnerisch) / EC ≈ 0.25 ms) | V87: Bewässerungsdüngung | X87: bei jeder Bewässerung | Y87: 0.8 - 1.2 | Z87: 13 cm Ø / 0.9 L | AA87: 31 cm Ø / 12 L | AB87: Anzuchtsubstrat: A200 Stender | AC87: Topfsubstrat: C700 Stender | AD87: 45 sonnenliebende Pflanzen ab Blüte (ca. 810 µmol/m²)
A88: Wildtomaten (S. chilense ) Langkultur | B88: Apr-Sep | C88: SO | D88: GWH | E88: Vermehrung-Ernte | F88: Aussaat | G88: sehr gut | H88: 4-5 | I88: 20 | J88: 20 | K88: 60 | L88: 60 | M88: 25 | N88: 79.883208 | O88: 19.970802 | P88: 16.370802 | Q88: 3.6 | R88: 50 | S88: 20 | T88: Tröpfchenbewässerung | U88: VE: STW (3:1) Verschnitt (pH: 7,7 / ≈ 7° dH (rechnerisch) / EC ≈ 0.25 ms) | V88: Bewässerungsdüngung | X88: bei jeder Bewässerung | Y88: 0.8 - 1.2 | Z88: 13 cm Ø / 0.9 L | AA88: 31 cm Ø / 12 L | AB88: Anzuchtsubstrat: A200 Stender | AC88: Topfsubstrat: C700 Stender | AD88: 45 sonnenliebende Pflanzen ab Blüte (ca. 810 µmol/m²)
A89: Wildtomaten (S. chilense ) Langkultur | B89: Okt-März | C89: WI | D89: GWH | E89: Vermehrung-Ernte | F89: Aussaat | G89: problematisch | H89: 4-5 | I89: 17 | J89: 17 | K89: 60 | L89: 60 | M89: 25 | N89: 35.51017689 | O89: 8.877544222 | P89: 5.277544222 | Q89: 3.6 | R89: 50 | S89: 20 | T89: Tröpfchenbewässerung | U89: VE: STW (3:1) Verschnitt (pH: 7,7 / ≈ 7° dH (rechnerisch) / EC ≈ 0.25 ms) | V89: Bewässerungsdüngung | X89: bei jeder Bewässerung | Y89: 0.8 - 1.2 | Z89: 13 cm Ø / 0.9 L | AA89: 31 cm Ø / 12 L | AB89: Anzuchtsubstrat: A200 Stender | AC89: Topfsubstrat: C700 Stender | AD89: 45 sonnenliebende Pflanzen ab Blüte (ca. 810 µmol/m²)
A90: Wildtomaten (S. chilense ) Langkultur | B90: Apr-Sep | C90: SO | D90: PAR | E90: Vermehrung-Ernte | F90: Aussaat | G90: gut | H90: 4-5 | I90: 20 | J90: 20 | K90: 60 | L90: 60 | M90: 25 | N90: 92.16 | O90: 23.04 | Q90: 23.04 | R90: 400 | S90: 16 | T90: Tröpfchenbewässerung | U90: VE: STW (3:1) Verschnitt (pH: 7,7 / ≈ 7° dH (rechnerisch) / EC ≈ 0.25 ms) | V90: Bewässerungsdüngung | X90: bei jeder Bewässerung | Y90: 0.8 - 1.2 | Z90: 13 cm Ø / 0.9 L | AA90: 31 cm Ø / 12 L | AB90: Anzuchtsubstrat: A200 Stender | AC90: Topfsubstrat: C700 Stender | AD90: 45 sonnenliebende Pflanzen ab Blüte (ca. 810 µmol/m²)
A91: Wildtomaten (S. chilense ) Langkultur | B91: Okt-März | C91: WI | D91: PAR | E91: Vermehrung-Ernte | F91: Aussaat | G91: gut | H91: 4-5 | I91: 20 | J91: 20 | K91: 60 | L91: 60 | M91: 25 | N91: 92.16 | O91: 23.04 | Q91: 23.04 | R91: 400 | S91: 16 | T91: Tröpfchenbewässerung | U91: VE: STW (3:1) Verschnitt (pH: 7,7 / ≈ 7° dH (rechnerisch) / EC ≈ 0.25 ms) | V91: Bewässerungsdüngung | X91: bei jeder Bewässerung | Y91: 0.8 - 1.2 | Z91: 13 cm Ø / 0.9 L | AA91: 31 cm Ø / 12 L | AB91: Anzuchtsubstrat: A200 Stender | AC91: Topfsubstrat: C700 Stender | AD91: 45 sonnenliebende Pflanzen ab Blüte (ca. 810 µmol/m²)
A92: Weizen-Sommer (Nasa) | B92: Apr-Sep | C92: SO | D92: GWH-KAB
A93: Weizen-Sommer (Nasa) | B93: Okt-März | C93: WI | D93: GWH-KAB
A94: Weizen-Sommer (Nasa) | B94: Apr-Sep | C94: SO | D94: GWH
A95: Weizen-Sommer (Nasa) | B95: Okt-März | C95: WI | D95: GWH
A96: Weizen-Sommer (Nasa) | B96: Apr-Sep | C96: SO | D96: PAR | E96: Vermehrung-Ernte | F96: Aussaat | G96: sehr gut | H96: 3 | I96: 23 | J96: 23 | K96: 60 | L96: 60 | M96: 35 | N96: =(100*O96)/M96 -> 98.74285714 | O96: 34.56 | Q96: =R96*S96*0.0036 -> 34.56 | R96: 600 | S96: 16 | T96: Anstaubewässerung | U96: VE: STW (3:1) Verschnitt (pH: 7,7 / ≈ 7° dH (rechnerisch) / EC ≈ 0.25 ms) | V96: Bewässerungsdüngung | X96: bei jeder Bewässerung | Y96: 0.8 - 1.2 | Z96: 13 cm Ø / 0.9 L | AB96: Anzuchtsubstrat: A200 Stender | AC96: Topfsubstrat: C700 Stender | AE96: immer 30 min Lichtrampe) => Keimung und Anpassung (23/23°C; 250 µmol/m²s (16h) - Bestockung (22/22°C; 500µmol/m²s(20h) - Schossen (22/22°C; 600 µmol/m²s (16h) - Ährenschieben (17/17°C; 600 µmol/m²s (16h) - dann 23/23°C - 250 µmol/m²s (16h)
A97: Weizen-Sommer (Nasa) | B97: Okt-März | C97: WI | D97: PAR | E97: Vermehrung-Ernte | F97: Aussaat | G97: sehr gut | H97: 3 | I97: 23 | J97: 23 | K97: 60 | L97: 60 | M97: 35 | N97: 98.74285714 | O97: 34.56 | Q97: 34.56 | R97: 600 | S97: 16 | T97: Anstaubewässerung | U97: VE: STW (3:1) Verschnitt (pH: 7,7 / ≈ 7° dH (rechnerisch) / EC ≈ 0.25 ms) | V97: Bewässerungsdüngung | X97: bei jeder Bewässerung | Y97: 0.8 - 1.2 | Z97: 13 cm Ø / 0.9 L | AB97: Anzuchtsubstrat: A200 Stender | AC97: Topfsubstrat: C700 Stender | AE97: immer 30 min Lichtrampe) => Keimung und Anpassung (23/23°C; 250 µmol/m²s (16h) - Bestockung (22/22°C; 500µmol/m²s(20h) - Schossen (22/22°C; 600 µmol/m²s (16h) - Ährenschieben (17/17°C; 600 µmol/m²s (16h) - dann 23/23°C - 250 µmol/m²s (16h)
A98: Weizen-Sommer (Triticum spp.) | B98: Apr-Sep | C98: SO | D98: GWH-KAB | E98: Vermehrung-Abreife | F98: Saatgutvermehrung | G98: sehr gut | H98: 4-5 | I98: 18 | J98: 18 | K98: 60 | L98: 60 | M98: 23 | N98: 90.75975652 | O98: 20.874744 | P98: 9.354744 | Q98: 11.52 | R98: 200 | S98: 16 | T98: Anstaubewässerung | U98: VE: STW (3:1) Verschnitt (pH: 7,7 / ≈ 7° dH (rechnerisch) / EC ≈ 0.25 ms) | V98: Bewässerungsdüngung | X98: bei jeder Bewässerung | Y98: Bestockung/Schossen: 1.2 - 1.8; Ährenschieben: 0.8-1.5 | Z98: 19 cm Ø / 3 L | AB98: Topfsubstrat: C700 Stender | AD98: 30 lichtempfindliche Pflanzen (ca. 540 µmol/m²s) | AE98: Bestockung/Schossen: N-betont - S wichtig; Ährenschieben: K-betont
A99: Weizen-Sommer (Triticum spp.) | B99: Okt-März | C99: WI | D99: GWH-KAB | E99: Vermehrung-Abreife | F99: Saatgutvermehrung | G99: problematisch | H99: 4-5 | I99: 17 | J99: 17 | K99: 60 | L99: 60 | M99: 23 | N99: 75.72060676 | O99: 17.41573956 | P99: 3.015739556 | Q99: 14.4 | R99: 200 | S99: 20 | T99: Anstaubewässerung | U99: VE: STW (3:1) Verschnitt (pH: 7,7 / ≈ 7° dH (rechnerisch) / EC ≈ 0.25 ms) | V99: Bewässerungsdüngung | X99: bei jeder Bewässerung | Y99: Bestockung/Schossen: 1.2 - 1.8; Ährenschieben: 0.8-1.5 | Z99: 19 cm Ø / 3 L | AB99: Topfsubstrat: C700 Stender | AD99: 30 lichtempfindliche Pflanzen (ca. 540 µmol/m²s) | AE99: Bestockung/Schossen: N-betont - S wichtig; Ährenschieben: K-betont
A100: Weizen-Sommer (Triticum spp.) | B100: Apr-Sep | C100: SO | D100: GWH | E100: Vermehrung-Abreife | F100: Saatgutvermehrung | G100: sehr gut | H100: 4-5 | I100: 17 | J100: 17 | M100: 23 | N100: 71.1774 | O100: 16.370802 | P100: 16.370802 | Q100: 0 | T100: Anstaubewässerung | U100: VE: STW (3:1) Verschnitt (pH: 7,7 / ≈ 7° dH (rechnerisch) / EC ≈ 0.25 ms) | V100: Bewässerungsdüngung | X100: bei jeder Bewässerung | Y100: Bestockung/Schossen: 1.2 - 1.8; Ährenschieben: 0.8-1.5 | Z100: 19 cm Ø / 3 L | AB100: Topfsubstrat: C700 Stender | AD100: 70 sonnenliebende Pflanzen Wachstumsphaste (ca. 1260 µmol/m²*s) | AE100: Bestockung/Schossen: N-betont - S wichtig; Ährenschieben: K-betont
A101: Weizen-Sommer (Triticum spp.) | B101: Okt-März | C101: WI | D101: GWH | E101: Vermehrung-Abreife | F101: Saatgutvermehrung | G101: problematisch | H101: 4-5 | I101: 17 | J101: 17 | M101: 23 | N101: 38.59801836 | O101: 8.877544222 | P101: 5.277544222 | Q101: 3.6 | R101: 50 | S101: 20 | T101: Anstaubewässerung | U101: VE: STW (3:1) Verschnitt (pH: 7,7 / ≈ 7° dH (rechnerisch) / EC ≈ 0.25 ms) | V101: Bewässerungsdüngung | X101: bei jeder Bewässerung | Y101: Bestockung/Schossen: 1.2 - 1.8; Ährenschieben: 0.8-1.5 | Z101: 19 cm Ø / 3 L | AB101: Topfsubstrat: C700 Stender | AE101: Bestockung/Schossen: N-betont - S wichtig; Ährenschieben: K-betont
A102: Weizen-Sommer (Triticum spp.) | B102: Apr-Sep | C102: SO | D102: PAR | E102: Vermehrung-Abreife | F102: Saatgutvermehrung | G102: sehr gut | H102: 4-5 | I102: 18 | J102: 17 | K102: 60 | L102: 60 | M102: 23 | N102: 100.173913 | O102: 23.04 | Q102: 23.04 | R102: 400 | S102: 16 | T102: Anstaubewässerung | U102: VE: STW (3:1) Verschnitt (pH: 7,7 / ≈ 7° dH (rechnerisch) / EC ≈ 0.25 ms) | V102: Bewässerungsdüngung | X102: bei jeder Bewässerung | Y102: Bestockung/Schossen: 1.2 - 1.8; Ährenschieben: 0.8-1.5 | Z102: 19 cm Ø / 3 L | AB102: Topfsubstrat: C700 Stender | AE102: Bestockung/Schossen: N-betont - S wichtig; Ährenschieben: K-betont
A103: Weizen-Sommer (Triticum spp.) | B103: Okt-März | C103: WI | D103: PAR | E103: Vermehrung-Abreife | F103: Saatgutvermehrung | G103: sehr gut | H103: 4-5 | I103: 18 | J103: 17 | K103: 60 | L103: 60 | M103: 23 | N103: 100.173913 | O103: 23.04 | Q103: 23.04 | R103: 400 | S103: 16 | T103: Anstaubewässerung | U103: VE: STW (3:1) Verschnitt (pH: 7,7 / ≈ 7° dH (rechnerisch) / EC ≈ 0.25 ms) | V103: Bewässerungsdüngung | X103: bei jeder Bewässerung | Y103: Bestockung/Schossen: 1.2 - 1.8; Ährenschieben: 0.8-1.5 | Z103: 19 cm Ø / 3 L | AB103: Topfsubstrat: C700 Stender | AE103: Bestockung/Schossen: N-betont - S wichtig; Ährenschieben: K-betont
A104: Weizen-Winter (Triticum spp.) | B104: Apr-Sep | C104: SO | D104: GWH-KAB | E104: Vermehrung-Abreife | F104: Saatgutvermehrung | G104: sehr gut | H104: 6-8 | I104: 18 | J104: 18 | K104: 60 | L104: 60 | M104: 23 | N104: 90.75975652 | O104: 20.874744 | P104: 9.354744 | Q104: 11.52 | R104: 200 | S104: 16 | T104: Anstaubewässerung | U104: VE: STW (3:1) Verschnitt (pH: 7,7 / ≈ 7° dH (rechnerisch) / EC ≈ 0.25 ms) | V104: Bewässerungsdüngung | X104: bei jeder Bewässerung | Y104: Bestockung/Schossen: 1.2 - 1.8; Ährenschieben: 0.8-1.5 | Z104: 19 cm Ø / 3 L | AB104: Topfsubstrat: C700 Stender | AD104: 30 lichtempfindliche Pflanzen (ca. 540 µmol/m²s) | AE104: 3-4 Wochen Vorkultur (18°C); 8-12 Wochen Vernalisation (8°C); Bestockung/Schossen: N-betont - S wichtig; Ährenschieben: K-betont
A105: Weizen-Winter (Triticum spp.) | B105: Okt-März | C105: WI | D105: GWH-KAB | E105: Vermehrung-Abreife | F105: Saatgutvermehrung | G105: problematisch | H105: 6-8 | I105: 17 | J105: 17 | K105: 60 | L105: 60 | M105: 23 | N105: 75.72060676 | O105: 17.41573956 | P105: 3.015739556 | Q105: 14.4 | R105: 200 | S105: 20 | T105: Anstaubewässerung | U105: VE: STW (3:1) Verschnitt (pH: 7,7 / ≈ 7° dH (rechnerisch) / EC ≈ 0.25 ms) | V105: Bewässerungsdüngung | X105: bei jeder Bewässerung | Y105: Bestockung/Schossen: 1.2 - 1.8; Ährenschieben: 0.8-1.5 | Z105: 19 cm Ø / 3 L | AB105: Topfsubstrat: C700 Stender | AD105: 30 lichtempfindliche Pflanzen (ca. 540 µmol/m²s) | AE105: 3-4 Wochen Vorkultur (18°C); 8-12 Wochen Vernalisation (8°C); Bestockung/Schossen: N-betont - S wichtig; Ährenschieben: K-betont
A106: Weizen-Winter (Triticum spp.) | B106: Apr-Sep | C106: SO | D106: GWH | E106: Vermehrung-Abreife | F106: Saatgutvermehrung | G106: sehr gut | H106: 6-8 | I106: 17 | J106: 17 | M106: 23 | N106: 71.1774 | O106: 16.370802 | P106: 16.370802 | Q106: 0 | T106: Anstaubewässerung | U106: VE: STW (3:1) Verschnitt (pH: 7,7 / ≈ 7° dH (rechnerisch) / EC ≈ 0.25 ms) | V106: Bewässerungsdüngung | X106: bei jeder Bewässerung | Y106: Bestockung/Schossen: 1.2 - 1.8; Ährenschieben: 0.8-1.5 | Z106: 19 cm Ø / 3 L | AB106: Topfsubstrat: C700 Stender | AD106: 70 sonnenliebende Pflanzen Wachstumsphaste (ca. 1260 µmol/m²*s) | AE106: 3-4 Wochen Vorkultur (18°C); 8-12 Wochen Vernalisation (8°C); Bestockung/Schossen: N-betont - S wichtig; Ährenschieben: K-betont
A107: Weizen-Winter (Triticum spp.) | B107: Okt-März | C107: WI | D107: GWH | E107: Vermehrung-Abreife | F107: Saatgutvermehrung | G107: problematisch | H107: 6-8 | I107: 17 | J107: 17 | M107: 23 | N107: 38.59801836 | O107: 8.877544222 | P107: 5.277544222 | Q107: 3.6 | R107: 50 | S107: 20 | T107: Anstaubewässerung | U107: VE: STW (3:1) Verschnitt (pH: 7,7 / ≈ 7° dH (rechnerisch) / EC ≈ 0.25 ms) | V107: Bewässerungsdüngung | X107: bei jeder Bewässerung | Y107: Bestockung/Schossen: 1.2 - 1.8; Ährenschieben: 0.8-1.5 | Z107: 19 cm Ø / 3 L | AB107: Topfsubstrat: C700 Stender | AE107: 3-4 Wochen Vorkultur (18°C); 8-12 Wochen Vernalisation (8°C); Bestockung/Schossen: N-betont - S wichtig; Ährenschieben: K-betont
A108: Weizen-Winter (Triticum spp.) | B108: Apr-Sep | C108: SO | D108: PAR | E108: Vermehrung-Abreife | F108: Saatgutvermehrung | G108: sehr gut | H108: 6-8 | I108: 18 | J108: 17 | K108: 60 | L108: 60 | M108: 23 | N108: 100.173913 | O108: 23.04 | Q108: 23.04 | R108: 400 | S108: 16 | T108: Anstaubewässerung | U108: VE: STW (3:1) Verschnitt (pH: 7,7 / ≈ 7° dH (rechnerisch) / EC ≈ 0.25 ms) | V108: Bewässerungsdüngung | X108: bei jeder Bewässerung | Y108: Bestockung/Schossen: 1.2 - 1.8; Ährenschieben: 0.8-1.5 | Z108: 19 cm Ø / 3 L | AB108: Topfsubstrat: C700 Stender | AE108: 3-4 Wochen Vorkultur (18°C); 8-12 Wochen Vernalisation (8°C); Bestockung/Schossen: N-betont - S wichtig; Ährenschieben: K-betont
A109: Weizen-Winter (Triticum spp.) | B109: Okt-März | C109: WI | D109: PAR | E109: Vermehrung-Abreife | F109: Saatgutvermehrung | G109: sehr gut | H109: 6-8 | I109: 18 | J109: 17 | K109: 60 | L109: 60 | M109: 23 | N109: 100.173913 | O109: 23.04 | Q109: 23.04 | R109: 400 | S109: 16 | T109: Anstaubewässerung | U109: VE: STW (3:1) Verschnitt (pH: 7,7 / ≈ 7° dH (rechnerisch) / EC ≈ 0.25 ms) | V109: Bewässerungsdüngung | X109: bei jeder Bewässerung | Y109: Bestockung/Schossen: 1.2 - 1.8; Ährenschieben: 0.8-1.5 | Z109: 19 cm Ø / 3 L | AB109: Topfsubstrat: C700 Stender | AE109: 3-4 Wochen Vorkultur (18°C); 8-12 Wochen Vernalisation (8°C); Bestockung/Schossen: N-betont - S wichtig; Ährenschieben: K-betont

Sheet Excel (hidden)
A2: 1 | B2: nur bestimmte Bereiche im AB zur bearbeitung freigeben | C2: Zellen markieren
C3: START / Zellen / Format
C4: Zelle sperren | D4: => entsperrt Zellen, wenn später das Abrebitsblatt gesperrt wird
C5: START / Zellen / Format
C6: Blatt schützen | D6: =>Passwort eingeben / OK
C7: evt. Bei überprüfen => "Nicht gesperrte Zellen auswählen" deaktivieren
B8: aufheben | C8: START / Zellen / Format
C9: Blattschutz aufheben (Passwort)
A11: 2 | B11: Nutzer kann keine Strukturänderungen vornehmen | C11: ÜBERPRÜFEN/Änderungen
C12: Arbeitsmappe schützen | D12: => "Struktur" muss aktiviert sein
D13: =>Passwort eingeben / OK
B14: aufheben | C14: ÜBERPRÜFEN/Änderungen
C15: Arbeitsmappe schützen | D15: =>Passwort eingeben / OK
B19: gi95gis_Mil98Den92
B20: ghl-anmeldung
B21: ghl
B25: Editor via Extras/Eigenschaften/Schutz | C25: VBA-Sperren | D25: ghl-steger
C26: Einträge sperren | D26: ghl-steger
C27: Datei sperren | D27: ghl-steger
B29: https://www.youtube.com/watch?v=RIucnioX9qs | C29: Kopf/Fusszeile Logo
B35: Dropdown
B36: https://www.youtube.com/watch?v=6lnsHNhZkro | C36: Position für Dropdown
C37: Daten
C38: Datenüberprüfung
C39: Liste
C40: Quelle (ohne Überschrift)
C41: OK
B42: Dropdown aus Tabelle
B43: https://www.youtube.com/watch?v=EByWLNGkCmw
C44: intellegent Liste erstellen
B45: Tabelle erstellen | C45: Zelle innerhalb der Daten | D45: https://www.youtube.com/watch?v=hh3YYOZNTcw
C46: Start / "Als Tabelle formatieren
C47: Formatvorlage Tabelle
C48: Zellbereich festlegen (Tabelle hat Überschriften)
C49: Liste benennen
C50: komplette Liste (mit Überschriften) markieren
C51: Formeln
C52: Definierte Namen
C53: Aus Auswahl erstellen
C54: => oberste Zeile
C55: Liste überprüfen
C56: Formeln
C57: Namens-Manager
C58: OHNE ÜBERSCHRIFT
C59: Position für Dropdown
C60: Daten
C61: Datenüberprüfung
C62: Liste
C63: Quelle (ohne Überschrift) => 'Listennamen'
C64: OK
B69: Dropdown Ja/Nein farbig | C69: Ja /Nein farbig | D69: https://www.youtube.com/watch?v=5xcuRJqidPU
C70: in Liste
C71: Kutoolen
C72: Dropdown-Liste
C73: Farbige Dropdown-Liste
C77: Ja /Nein farbig
C78: Zelle in Dropdown
C79: Wert aussuchen z.B. Ja
C80: Start
C81: Bedingte Formatierung
C82: Regeln zum Hervorheben (oberste)
C83: Gleich
C84: Fenster => Farbe definieren | D84: benutzerdefiniert => andere Farbe oder Leer
C86: nächster Wert…
C88: Bedingte Formatierung
C89: Regeln verwalten
B93: Verknüpfungen löschen | C93: Daten
C94: Verbindungen
C95: Verknüpfungen bearbeiten
B97: Geisterverbindungen | C97: Datei unter Excel97 speichern / Excel schließen / Datei öffnen / unter Excel-aktuell speichern
